Workbook

Sheet Pages 128,131
A1: SETTING UP THE FINANCIAL STATEMENT MODEL
A2: Sales growth | B2: 0.1
A3: Current assets/Sales | B3: 0.15
A4: Current liabilities/Sales | B4: 0.08
A5: Net fixed assets/Sales | B5: 0.77
A6: Costs of goods sold/Sales | B6: 0.5
A7: Depreciation rate | B7: 0.1
A8: Interest rate on debt | B8: 0.1
A9: Interest paid on cash and marketable securities | B9: 0.08
A10: Tax rate | B10: 0.4
A11: Dividend payout ratio | B11: 0.4
A13: Year | B13: 0 | C13: 1
A14: Income statement
A15: Sales | B15: =1000 -> 1000 | C15: =B15*(1+$B$2) -> 1100 | D15: =getformula(C15) -> <-- =B15*(1+$B$2)
A16: Costs of goods sold | B16: =-B15*$B$6 -> -500 | C16: =-C15*$B$6 -> -550 | D16: =getformula(C16) -> <-- =-C15*$B$6
A17: Interest payments on debt | B17: =-$B$8*B36 -> -32 | C17: =-$B$8*(B36+C36)/2 -> -32 | D17: <-- =-$B$8*(B36+C36)/2
A18: Interest earned on cash and marketable securities | B18: =$B$9*B27 -> 6.4 | C18: =$B$9*(B27+C27)/2 -> 8.947795625 | D18: <-- =$B$9*(B27+C27)/2
A19: Depreciation | B19: -100 | C19: =-$B$7*(C30+B30)/2 -> -116.6842105 | D19: <-- =-$B$7*(C30+B30)/2
A20: Profit before tax | B20: =SUM(B15:B19) -> 374.4 | C20: =SUM(C15:C19) -> 410.2635851 | D20: <-- =SUM(C15:C19)
A21: Taxes | B21: =-B20*$B$10 -> -149.76 | C21: =-C20*$B$10 -> -164.105434 | D21: <-- =-C20*$B$10
A22: Profit after tax | B22: =B21+B20 -> 224.64 | C22: =C21+C20 -> 246.1581511 | D22: <-- =C21+C20
A23: Dividends | B23: =-B22*$B$11 -> -89.856 | C23: =-$B$11*C22 -> -98.46326042 | D23: <-- =-$B$11*C22
A24: Retained earnings | B24: =B23+B22 -> 134.784 | C24: =C23+C22 -> 147.6948906 | D24: <-- =C23+C22
A26: Balance sheet
A27: Cash and marketable securities | B27: 80 | C27: =C39-C28-C32 -> 143.6948906 | D27: =getformula(C27) -> <-- =C39-C28-C32
A28: Current assets | B28: =$B$3*B15 -> 150 | C28: =C15*$B$3 -> 165 | D28: =getformula(C28) -> <-- =C15*$B$3
A29: Fixed assets
A30: At cost | B30: =B32-B31 -> 1070 | C30: =C32-C31 -> 1263.684211 | D30: =getformula(C30) -> <-- =C32-C31
A31: Depreciation | B31: -300 | C31: =B31+C19 -> -416.6842105 | D31: =getformula(C31) -> <-- =B31+C19
A32: Net fixed assets | B32: =B15*$B$5 -> 770 | C32: =C15*$B$5 -> 847 | D32: =getformula(C32) -> <-- =C15*$B$5
A33: Total assets | B33: =B27+B28+B32 -> 1000 | C33: =C32+C28+C27 -> 1155.694891 | D33: =getformula(C33) -> <-- =C32+C28+C27
A35: Current liabilities | B35: =B15*$B$4 -> 80 | C35: =C15*$B$4 -> 88 | D35: =getformula(C35) -> <-- =C15*$B$4
A36: Debt | B36: =B33-B35-B37-B38 -> 320 | C36: =B36 -> 320 | D36: =getformula(C36) -> <-- =B36
A37: Stock | B37: 450 | C37: =B37 -> 450 | D37: =getformula(C37) -> <-- =B37
A38: Accumulated retained earnings | B38: 150 | C38: =B38+C24 -> 297.6948906 | D38: =getformula(C38) -> <-- =B38+C24
A39: Total liabilities and equity | B39: =SUM(B35:B38) -> 1000 | C39: =SUM(C35:C38) -> 1155.694891 | D39: =getformula(C39) -> <-- =SUM(C35:C38)

Sheet Pages 135-138
A1: FIRST FINANCIAL MODEL
A2: Sales growth | B2: 0.1
A3: Current assets/Sales | B3: 0.15
A4: Current liabilities/Sales | B4: 0.08
A5: Net fixed assets/Sales | B5: 0.77
A6: Costs of goods sold/Sales | B6: 0.5
A7: Depreciation rate | B7: 0.1
A8: Interest rate on debt | B8: 0.1
A9: Interest paid on cash and marketable securities | B9: 0.08
A10: Tax rate | B10: 0.4
A11: Dividend payout ratio | B11: 0.4
A13: Year | B13: 0 | C13: 1 | D13: 2 | E13: 3 | F13: 4 | G13: 5
A14: Income statement
A15: Sales | B15: =1000 -> 1000 | C15: =B15*(1+$B$2) -> 1100 | D15: =C15*(1+$B$2) -> 1210 | E15: =D15*(1+$B$2) -> 1331 | F15: =E15*(1+$B$2) -> 1464.1 | G15: =F15*(1+$B$2) -> 1610.51 | H15: =getformula(G15) -> <-- =F15*(1+$B$2)
A16: Costs of goods sold | B16: =-B15*$B$6 -> -500 | C16: -550 | D16: -605 | E16: -665.5 | F16: -732.05 | G16: -805.255 | H16: =getformula(G16) -> <-- =-G15*$B$6
A17: Interest payments on debt | B17: =-$B$8*B36 -> -32 | C17: =-$B$8*(B36+C36)/2 -> -32 | D17: =-$B$8*(C36+D36)/2 -> -32 | E17: =-$B$8*(D36+E36)/2 -> -32 | F17: =-$B$8*(E36+F36)/2 -> -32 | G17: =-$B$8*(F36+G36)/2 -> -32 | H17: <-- =-$B$8*(F36+G36)/2
A18: Interest earned on cash and marketable securities | B18: =$B$9*B27 -> 6.4 | C18: =$B$9*(B27+C27)/2 -> 8.947795625 | D18: =$B$9*(C27+D27)/2 -> 14.27670286 | E18: =$B$9*(D27+E27)/2 -> 20.08091336 | F18: =$B$9*(E27+F27)/2 -> 26.37673126 | G18: =$B$9*(F27+G27)/2 -> 33.17806883 | H18: <-- =$B$9*(F27+G27)/2
A19: Depreciation | B19: -100 | C19: =-$B$7*(C30+B30)/2 -> -116.6842105 | D19: =-$B$7*(D30+C30)/2 -> -137.4772853 | E19: =-$B$7*(E30+D30)/2 -> -161.3101575 | F19: =-$B$7*(F30+E30)/2 -> -188.5879109 | G19: =-$B$7*(G30+F30)/2 -> -219.7667804 | H19: <-- =-$B$7*(G30+F30)/2
A20: Profit before tax | B20: =SUM(B15:B19) -> 374.4 | C20: 410.2635851 | D20: 449.7994175 | E20: 492.2707559 | F20: 537.8388204 | G20: 586.6662884 | H20: <-- =SUM(G15:G19)
A21: Taxes | B21: =-B20*$B$10 -> -149.76 | C21: -164.105434 | D21: -179.919767 | E21: -196.9083024 | F21: -215.1355282 | G21: -234.6665154 | H21: <-- =-G20*$B$10
A22: Profit after tax | B22: =B21+B20 -> 224.64 | C22: 246.1581511 | D22: 269.8796505 | E22: 295.3624535 | F22: 322.7032922 | G22: 351.999773 | H22: <-- =G21+G20
A23: Dividends | B23: =-B22*$B$11 -> -89.856 | C23: =-$B$11*C22 -> -98.46326042 | D23: =-$B$11*D22 -> -107.9518602 | E23: =-$B$11*E22 -> -118.1449814 | F23: =-$B$11*F22 -> -129.0813169 | G23: =-$B$11*G22 -> -140.7999092 | H23: <-- =-$B$11*G22
A24: Retained earnings | B24: =B23+B22 -> 134.784 | C24: 147.6948906 | D24: 161.9277903 | E24: 177.2174721 | F24: 193.6219753 | G24: 211.1998638 | H24: <-- =G23+G22
A26: Balance sheet
A27: Cash and marketable securities | B27: 80 | C27: =C39-C28-C32 -> 143.6948906 | D27: =D39-D28-D32 -> 213.222681 | E27: =E39-E28-E32 -> 288.8001531 | F27: =F39-F28-F32 -> 370.6181284 | G27: =G39-G28-G32 -> 458.8335922 | H27: <-- =G39-G28-G32
A28: Current assets | B28: =$B$3*B15 -> 150 | C28: =C15*$B$3 -> 165 | D28: =D15*$B$3 -> 181.5 | E28: =E15*$B$3 -> 199.65 | F28: =F15*$B$3 -> 219.615 | G28: =G15*$B$3 -> 241.5765 | H28: <-- =G15*$B$3
A29: Fixed assets
A30: At cost | B30: =B32-B31 -> 1070 | C30: 1263.684211 | D30: 1485.861496 | E30: 1740.341653 | F30: 2031.416564 | G30: 2363.919045 | H30: <-- =G32-G31
A31: Depreciation | B31: -300 | C31: =B31+C19 -> -416.6842105 | D31: =C31+D19 -> -554.1614958 | E31: =D31+E19 -> -715.4716533 | F31: =E31+F19 -> -904.0595642 | G31: =F31+G19 -> -1123.826345 | H31: <-- =F31+G19
A32: Net fixed assets | B32: =B15*$B$5 -> 770 | C32: 847 | D32: 931.7 | E32: 1024.87 | F32: 1127.357 | G32: 1240.0927 | H32: <-- =G15*$B$5
A33: Total assets | B33: =B27+B28+B32 -> 1000 | C33: =C32+C28+C27 -> 1155.694891 | D33: =D32+D28+D27 -> 1326.422681 | E33: =E32+E28+E27 -> 1513.320153 | F33: =F32+F28+F27 -> 1717.590128 | G33: =G32+G28+G27 -> 1940.502792 | H33: <-- =G32+G28+G27
A35: Current liabilities | B35: =B15*$B$4 -> 80 | C35: 88 | D35: 96.8 | E35: 106.48 | F35: 117.128 | G35: 128.8408 | H35: <-- =G15*$B$4
A36: Debt | B36: =B33-B35-B37-B38 -> 320 | C36: =B36 -> 320 | D36: 320 | E36: 320 | F36: 320 | G36: 320 | H36: <-- =F36
A37: Stock | B37: 450 | C37: 450 | D37: 450 | E37: 450 | F37: 450 | G37: 450 | H37: <-- =F37
A38: Accumulated retained earnings | B38: 150 | C38: =B38+C24 -> 297.6948906 | D38: =C38+D24 -> 459.622681 | E38: =D38+E24 -> 636.8401531 | F38: =E38+F24 -> 830.4621284 | G38: =F38+G24 -> 1041.661992 | H38: <-- =F38+G24
A39: Total liabilities and equity | B39: =SUM(B35:B38) -> 1000 | C39: 1155.694891 | D39: 1326.422681 | E39: 1513.320153 | F39: 1717.590128 | G39: 1940.502792 | H39: <-- =SUM(G35:G38)
A41: Year | B41: 0 | C41: 1 | D41: 2 | E41: 3 | F41: 4 | G41: 5
A42: Free cash flow calculation
A43: Profit after tax | C43: =C22 -> 246.1581511 | D43: =D22 -> 269.8796505 | E43: =E22 -> 295.3624535 | F43: =F22 -> 322.7032922 | G43: =G22 -> 351.999773 | H43: <-- =G22
A44: Add back depreciation | C44: =-C19 -> 116.6842105 | D44: =-D19 -> 137.4772853 | E44: =-E19 -> 161.3101575 | F44: =-F19 -> 188.5879109 | G44: =-G19 -> 219.7667804 | H44: <-- =-G19
A45: Subtract increase in current assets | C45: =-(C28-B28) -> -15 | D45: =-(D28-C28) -> -16.5 | E45: =-(E28-D28) -> -18.15 | F45: =-(F28-E28) -> -19.965 | G45: =-(G28-F28) -> -21.9615 | H45: <-- =-(G28-F28)
A46: Add back increase in current liabilities | C46: =C35-B35 -> 8 | D46: =D35-C35 -> 8.8 | E46: =E35-D35 -> 9.68 | F46: =F35-E35 -> 10.648 | G46: =G35-F35 -> 11.7128 | H46: <-- =G35-F35
A47: Subtract increase in fixed assets at cost | C47: =-(C30-B30) -> -193.6842105 | D47: =-(D30-C30) -> -222.1772853 | E47: =-(E30-D30) -> -254.4801575 | F47: =-(F30-E30) -> -291.0749109 | G47: =-(G30-F30) -> -332.5024804 | H47: <-- =-(G30-F30)
A48: Add back after-tax interest on debt | C48: =-(1-$B$10)*C17 -> 19.2 | D48: 19.2 | E48: 19.2 | F48: 19.2 | G48: 19.2 | H48: <-- =-(1-$B$10)*G17
A49: Subtract after-tax interest on cash and+A14 mkt. securities | C49: -5.368677375 | D49: -8.566021718 | E49: -12.04854802 | F49: -15.82603876 | G49: -19.9068413 | H49: <-- =-(1-$B$10)*G18
A50: Free cash flow | C50: =SUM(C43:C49) -> 175.9894737 | D50: =SUM(D43:D49) -> 188.1136288 | E50: =SUM(E43:E49) -> 200.8739055 | F50: =SUM(F43:F49) -> 214.2732535 | G50: =SUM(G43:G49) -> 228.3085317 | H50: <-- =SUM(G43:G49)
A53: CONSOLIDATED STATEMENT OF CASH FLOWS: RECONCILING THE CASH BALANCES
A54: Cash flow from operating activities
A55: Profit after tax | C55: =C22 -> 246.1581511 | D55: =D22 -> 269.8796505 | E55: =E22 -> 295.3624535 | F55: =F22 -> 322.7032922 | G55: =G22 -> 351.999773 | H55: <-- =G22
A56: Add back depreciation | C56: =-C19 -> 116.6842105 | D56: =-D19 -> 137.4772853 | E56: =-E19 -> 161.3101575 | F56: =-F19 -> 188.5879109 | G56: =-G19 -> 219.7667804 | H56: <-- =-G19
A57: Adjust for changes in net working capital:
A58: Subtract increase in current assets | C58: =-(C28-B28) -> -15 | D58: =-(D28-C28) -> -16.5 | E58: =-(E28-D28) -> -18.15 | F58: =-(F28-E28) -> -19.965 | G58: =-(G28-F28) -> -21.9615 | H58: <-- =-(G28-F28)
A59: Add back increase in current liabilities | C59: =C35-B35 -> 8 | D59: =D35-C35 -> 8.8 | E59: =E35-D35 -> 9.68 | F59: =F35-E35 -> 10.648 | G59: =G35-F35 -> 11.7128 | H59: <-- =G35-F35
A60: Net cash from operating activities | C60: =SUM(C55:C59) -> 355.8423616 | D60: =SUM(D55:D59) -> 399.6569358 | E60: =SUM(E55:E59) -> 448.202611 | F60: =SUM(F55:F59) -> 501.9742031 | G60: =SUM(G55:G59) -> 561.5178535 | H60: <-- =SUM(G55:G59)
A62: Cash flow from investing activities
A63: Aquisitions of fixed assets—capital expenditures | C63: =-(C30-B30) -> -193.6842105 | D63: =-(D30-C30) -> -222.1772853 | E63: =-(E30-D30) -> -254.4801575 | F63: =-(F30-E30) -> -291.0749109 | G63: =-(G30-F30) -> -332.5024804 | H63: <-- =-(G30-F30)
A64: Purchases of investment securities | C64: 0 | D64: 0 | E64: 0 | F64: 0 | G64: 0 | H64: <-- Not in our model
A65: Proceeds from sales of investment securities | C65: 0 | D65: 0 | E65: 0 | F65: 0 | G65: 0 | H65: <-- Not in our model
A66: Net cash used in investing activities | C66: =SUM(C63:C65) -> -193.6842105 | D66: =SUM(D63:D65) -> -222.1772853 | E66: =SUM(E63:E65) -> -254.4801575 | F66: =SUM(F63:F65) -> -291.0749109 | G66: =SUM(G63:G65) -> -332.5024804 | H66: <-- =SUM(G63:G65)
A68: Cash flow from financing activities
A69: Net proceeds from borrowing activities | C69: =C36-B36 -> 0 | D69: 0 | E69: 0 | F69: 0 | G69: 0 | H69: <-- =G36-F36
A70: Net proceeds from stock issues, repurchases | C70: 0 | D70: 0 | E70: 0 | F70: 0 | G70: 0 | H70: <-- =G37-F37
A71: Dividends paid | C71: =C23 -> -98.46326042 | D71: =D23 -> -107.9518602 | E71: =E23 -> -118.1449814 | F71: =F23 -> -129.0813169 | G71: =G23 -> -140.7999092 | H71: <-- =G23
A72: Net cash from financing activities | C72: =SUM(C69:C71) -> -98.46326042 | D72: =SUM(D69:D71) -> -107.9518602 | E72: =SUM(E69:E71) -> -118.1449814 | F72: =SUM(F69:F71) -> -129.0813169 | G72: =SUM(G69:G71) -> -140.7999092 | H72: <-- =SUM(G69:G71)
A74: Net increase in cash and cash equivalents | C74: =C72+C66+C60 -> 63.69489064 | D74: =D72+D66+D60 -> 69.52779032 | E74: =E72+E66+E60 -> 75.57747213 | F74: =F72+F66+F60 -> 81.81797534 | G74: =G72+G66+G60 -> 88.21546382 | H74: <-- =G72+G66+G60
A75: Check: changes in cash and mkt. securities | C75: =C27-B27 -> 63.69489064 | D75: =D27-C27 -> 69.52779032 | E75: =E27-D27 -> 75.57747213 | F75: =F27-E27 -> 81.81797534 | G75: =G27-F27 -> 88.21546382 | H75: <-- =G27-F27

Sheet Pages 139-142, 144, 145
A1: FIRST FINANCIAL MODEL
A2: Sales growth | B2: 0.1
A3: Current assets/Sales | B3: 0.15
A4: Current liabilities/Sales | B4: 0.08
A5: Net fixed assets/Sales | B5: 0.77
A6: Costs of goods sold/Sales | B6: 0.5
A7: Depreciation rate | B7: 0.1
A8: Interest rate on debt | B8: 0.1
A9: Interest paid on cash and marketable securities | B9: 0.08
A10: Tax rate | B10: 0.4
A11: Dividend payout ratio | B11: 0.4
A13: Year | B13: 0 | C13: 1 | D13: 2 | E13: 3 | F13: 4 | G13: 5
A14: Income statement
A15: Sales | B15: =1000 -> 1000 | C15: =B15*(1+$B$2) -> 1100 | D15: =C15*(1+$B$2) -> 1210 | E15: =D15*(1+$B$2) -> 1331 | F15: =E15*(1+$B$2) -> 1464.1 | G15: =F15*(1+$B$2) -> 1610.51
A16: Costs of goods sold | B16: =-B15*$B$6 -> -500 | C16: -550 | D16: -605 | E16: -665.5 | F16: -732.05 | G16: -805.255
A17: Interest payments on debt | B17: =-$B$8*B36 -> -32 | C17: =-$B$8*(B36+C36)/2 -> -32 | D17: =-$B$8*(C36+D36)/2 -> -32 | E17: =-$B$8*(D36+E36)/2 -> -32 | F17: =-$B$8*(E36+F36)/2 -> -32 | G17: =-$B$8*(F36+G36)/2 -> -32
A18: Interest earned on cash and marketable securities | B18: =$B$9*B27 -> 6.4 | C18: =$B$9*(B27+C27)/2 -> 8.947795625 | D18: =$B$9*(C27+D27)/2 -> 14.27670286 | E18: =$B$9*(D27+E27)/2 -> 20.08091336 | F18: =$B$9*(E27+F27)/2 -> 26.37673126 | G18: =$B$9*(F27+G27)/2 -> 33.17806883
A19: Depreciation | B19: -100 | C19: =-$B$7*(C30+B30)/2 -> -116.6842105 | D19: =-$B$7*(D30+C30)/2 -> -137.4772853 | E19: =-$B$7*(E30+D30)/2 -> -161.3101575 | F19: =-$B$7*(F30+E30)/2 -> -188.5879109 | G19: =-$B$7*(G30+F30)/2 -> -219.7667804
A20: Profit before tax | B20: =SUM(B15:B19) -> 374.4 | C20: 410.2635851 | D20: 449.7994175 | E20: 492.2707559 | F20: 537.8388204 | G20: 586.6662884
A21: Taxes | B21: =-B20*$B$10 -> -149.76 | C21: -164.105434 | D21: -179.919767 | E21: -196.9083024 | F21: -215.1355282 | G21: -234.6665154
A22: Profit after tax | B22: =B21+B20 -> 224.64 | C22: 246.1581511 | D22: 269.8796505 | E22: 295.3624535 | F22: 322.7032922 | G22: 351.999773
A23: Dividends | B23: =-B22*$B$11 -> -89.856 | C23: =-$B$11*C22 -> -98.46326042 | D23: =-$B$11*D22 -> -107.9518602 | E23: =-$B$11*E22 -> -118.1449814 | F23: =-$B$11*F22 -> -129.0813169 | G23: =-$B$11*G22 -> -140.7999092
A24: Retained earnings | B24: =B23+B22 -> 134.784 | C24: 147.6948906 | D24: 161.9277903 | E24: 177.2174721 | F24: 193.6219753 | G24: 211.1998638
A26: Balance sheet
A27: Cash and marketable securities | B27: 80 | C27: =C39-C28-C32 -> 143.6948906 | D27: =D39-D28-D32 -> 213.222681 | E27: =E39-E28-E32 -> 288.8001531 | F27: =F39-F28-F32 -> 370.6181284 | G27: =G39-G28-G32 -> 458.8335922
A28: Current assets | B28: =$B$3*B15 -> 150 | C28: =C15*$B$3 -> 165 | D28: =D15*$B$3 -> 181.5 | E28: =E15*$B$3 -> 199.65 | F28: =F15*$B$3 -> 219.615 | G28: =G15*$B$3 -> 241.5765
A29: Fixed assets
A30: At cost | B30: =B32-B31 -> 1070 | C30: 1263.684211 | D30: 1485.861496 | E30: 1740.341653 | F30: 2031.416564 | G30: 2363.919045
A31: Depreciation | B31: -300 | C31: =B31+C19 -> -416.6842105 | D31: =C31+D19 -> -554.1614958 | E31: =D31+E19 -> -715.4716533 | F31: =E31+F19 -> -904.0595642 | G31: =F31+G19 -> -1123.826345
A32: Net fixed assets | B32: =B15*$B$5 -> 770 | C32: 847 | D32: 931.7 | E32: 1024.87 | F32: 1127.357 | G32: 1240.0927
A33: Total assets | B33: =B27+B28+B32 -> 1000 | C33: =C32+C28+C27 -> 1155.694891 | D33: =D32+D28+D27 -> 1326.422681 | E33: =E32+E28+E27 -> 1513.320153 | F33: =F32+F28+F27 -> 1717.590128 | G33: =G32+G28+G27 -> 1940.502792
A35: Current liabilities | B35: =B15*$B$4 -> 80 | C35: 88 | D35: 96.8 | E35: 106.48 | F35: 117.128 | G35: 128.8408
A36: Debt | B36: =B33-B35-B37-B38 -> 320 | C36: =B36 -> 320 | D36: 320 | E36: 320 | F36: 320 | G36: 320
A37: Stock | B37: 450 | C37: 450 | D37: 450 | E37: 450 | F37: 450 | G37: 450
A38: Accumulated retained earnings | B38: 150 | C38: =B38+C24 -> 297.6948906 | D38: =C38+D24 -> 459.622681 | E38: =D38+E24 -> 636.8401531 | F38: =E38+F24 -> 830.4621284 | G38: =F38+G24 -> 1041.661992
A39: Total liabilities and equity | B39: =SUM(B35:B38) -> 1000 | C39: 1155.694891 | D39: 1326.422681 | E39: 1513.320153 | F39: 1717.590128 | G39: 1940.502792
A41: Year | B41: 0 | C41: 1 | D41: 2 | E41: 3 | F41: 4 | G41: 5
A42: Free cash flow calculation
A43: Profit after tax | C43: =C22 -> 246.1581511 | D43: =D22 -> 269.8796505 | E43: =E22 -> 295.3624535 | F43: =F22 -> 322.7032922 | G43: =G22 -> 351.999773
A44: Add back depreciation | C44: =-C19 -> 116.6842105 | D44: =-D19 -> 137.4772853 | E44: =-E19 -> 161.3101575 | F44: =-F19 -> 188.5879109 | G44: =-G19 -> 219.7667804
A45: Subtract increase in current assets | C45: =-(C28-B28) -> -15 | D45: =-(D28-C28) -> -16.5 | E45: =-(E28-D28) -> -18.15 | F45: =-(F28-E28) -> -19.965 | G45: =-(G28-F28) -> -21.9615
A46: Add back increase in current liabilities | C46: =C35-B35 -> 8 | D46: =D35-C35 -> 8.8 | E46: =E35-D35 -> 9.68 | F46: =F35-E35 -> 10.648 | G46: =G35-F35 -> 11.7128
A47: Subtract increase in fixed assets at cost | C47: =-(C30-B30) -> -193.6842105 | D47: =-(D30-C30) -> -222.1772853 | E47: =-(E30-D30) -> -254.4801575 | F47: =-(F30-E30) -> -291.0749109 | G47: =-(G30-F30) -> -332.5024804
A48: Add back after-tax interest on debt | C48: =-(1-$B$10)*C17 -> 19.2 | D48: 19.2 | E48: 19.2 | F48: 19.2 | G48: 19.2
A49: Subtract after-tax interest on cash and mkt. securities | C49: -5.368677375 | D49: -8.566021718 | E49: -12.04854802 | F49: -15.82603876 | G49: -19.9068413
A50: Free cash flow | C50: =SUM(C43:C49) -> 175.9894737 | D50: =SUM(D43:D49) -> 188.1136288 | E50: =SUM(E43:E49) -> 200.8739055 | F50: =SUM(F43:F49) -> 214.2732535 | G50: =SUM(G43:G49) -> 228.3085317
A53: Valuing the firm
A54: Weighted average cost of capital | B54: 0.2
A55: Long-term free cash flow growth rate | B55: 0.05 | C55: <-- real growth 2% + inflation 3%?
A57: Year | B57: 0 | C57: 1 | D57: 2 | E57: 3 | F57: 4 | G57: 5
A58: FCF | C58: =C50 -> 175.9894737 | D58: =D50 -> 188.1136288 | E58: =E50 -> 200.8739055 | F58: =F50 -> 214.2732535 | G58: =G50 -> 228.3085317
A59: Terminal value | G59: =G58*(1+B55)/(B54-B55) -> 1598.159722 | H59: =getformula(G59) -> <-- =G58*(1+B55)/(B54-B55)
A60: Total | C60: =C59+C58 -> 175.9894737 | D60: =D59+D58 -> 188.1136288 | E60: =E59+E58 -> 200.8739055 | F60: =F59+F58 -> 214.2732535 | G60: =G59+G58 -> 1826.468254
A62: ="Enterprise value, present value of row "&ROW(A60) -> Enterprise value, present value of row 60 | B62: =NPV(B54,C60:G60) -> 1230.889397 | C62: =getformula(B62) -> <-- =NPV(B54,C60:G60)
A63: Add in initial (year 0) cash and mkt. securities | B63: =B27 -> 80 | C63: =getformula(B63) -> <-- =B27
A64: Asset value in year 0 | B64: =B63+B62 -> 1310.889397 | C64: =getformula(B64) -> <-- =B63+B62
A65: Subtract out value of firm's debt today | B65: =-B36 -> -320 | C65: =getformula(B65) -> <-- =-B36
A66: Equity value | B66: =B64+B65 -> 990.8893974 | C66: =getformula(B66) -> <-- =B64+B65
A68: Cash and marketable securities as negative debt
A69: ="NPV of row "&ROW(A60)&" = enterprise value" -> NPV of row 60 = enterprise value | B69: =B62 -> 1230.889397 | C69: =getformula(B69) -> <-- =B62
A70: Net year 0 debt: debt minus cash | B70: =-B36+B27 -> -240 | C70: =getformula(B70) -> <-- =-B36+B27
A71: Equity value | B71: =B69+B70 -> 990.8893974 | C71: =getformula(B71) -> <-- =B69+B70
A74: Valuing the firm—using mid-year discounting
A75: Weighted average cost of capital | B75: =B54 -> 0.2
A76: Long-term free cash flow growth rate | B76: 0.05
A78: Year | B78: 0 | C78: 1 | D78: 2 | E78: 3 | F78: 4 | G78: 5
A79: FCF | C79: =C58 -> 175.9894737 | D79: =D58 -> 188.1136288 | E79: =E58 -> 200.8739055 | F79: =F58 -> 214.2732535 | G79: =G58 -> 228.3085317
A80: Terminal value | G80: =G79*(1+B76)/(B75-B76) -> 1598.159722 | H80: =getformula(G80) -> <-- =G79*(1+B76)/(B75-B76)
A81: Total | C81: =C80+C79 -> 175.9894737 | D81: =D80+D79 -> 188.1136288 | E81: =E80+E79 -> 200.8739055 | F81: =F80+F79 -> 214.2732535 | G81: =G80+G79 -> 1826.468254
A83: ="Enterprise value, NPV of row "&ROW(A81) -> Enterprise value, NPV of row 81 | B83: =NPV(B75,C81:G81)*(1+B75)^0.5 -> 1348.371777 | C83: =getformula(B83) -> <-- =NPV(B75,C81:G81)*(1+B75)^0.5
A84: Add in initial (year 0) cash and mkt. securities | B84: =B27 -> 80 | C84: =getformula(B84) -> <-- =B27
A85: Asset value in year 0 | B85: =B84+B83 -> 1428.371777 | C85: =getformula(B85) -> <-- =B84+B83
A86: Subtract out value of firm's debt today | B86: =B65 -> -320 | C86: =getformula(B86) -> <-- =B65
A87: Equity value | B87: =B85+B86 -> 1108.371777 | C87: =getformula(B87) -> <-- =B85+B86
A90: ="Data table: The effect of sales growth (cell "&CHAR(COLUMN(B2)+64)&ROW(B2)&") on equity valuation" -> Data table: The effect of sales growth (cell B2) on equity valuation
B91: Growth | C91: =B87 -> 1108.371777 | D91: =getformula(C91)&" , data table header" -> <-- =B87 , data table header
B92: 0 | C92: 1093.078879
B93: 0.02 | C93: 1104.940697
B94: 0.04 | C94: 1112.916085
B95: 0.06 | C95: 1116.506802
B96: 0.08 | C96: 1115.179633
B97: 0.1 | C97: 1108.371888
B98: 0.12 | C98: 1095.48952
B99: 0.14 | C99: 1075.906357
B100: 0.16 | C100: 1048.963341
C107: WACC ¯
B108: =IF(B75<=B76,"nmf",B87) -> 1108.371777 | C108: 0.1 | D108: 0.12 | E108: 0.14 | F108: 0.16 | G108: 0.18 | H108: 0.2 | I108: 0.22 | J108: 0.24 | K108: 0.26
B109: 0 | C109: 2038.123239 | D109: 1660.038287 | E109: 1390.523356 | F109: 1188.820536 | G109: 1032.290556 | H109: 907.3530453 | I109: 805.3685173 | J109: 720.5794041 | K109: 649.0014108
A110: Long-term FCF growth rate --> | B110: 0.02 | C110: 2446.9956 | D110: 1915.960399 | E110: 1562.344211 | F110: 1310.075955 | G110: 1121.123207 | H110: 974.3592893 | I110: 857.110141 | J110: 761.3120214 | K110: 681.5903812
B111: 0.04 | C111: 3128.449532 | D111: 2299.843567 | E111: 1802.893408 | F111: 1471.749847 | G111: 1235.336616 | H111: 1058.117094 | I111: 920.3499033 | J111: 810.191162 | K111: 720.1046189
B112: 0.06 | C112: 4491.357394 | D112: 2939.648848 | E112: 2163.717203 | F112: 1698.093295 | G112: 1387.621161 | H112: 1165.805701 | I112: 999.3996061 | J112: 869.932334 | K112: 766.3217041
B113: 0.08 | C113: 8580.080982 | D113: 4219.259408 | E113: 2765.090195 | F113: 2037.608468 | G113: 1600.819524 | H113: 1309.39051 | I113: 1101.034938 | J113: 944.6087989 | K113: 822.8092527
B114: 0.1 | C114: nmf | D114: 8058.09109 | E114: 3967.836178 | F114: 2603.467089 | G114: 1920.617068 | H114: 1510.409242 | I114: 1236.548715 | J114: 1040.621397 | K114: 893.4186885
B115: 0.12 | C115: nmf | D115: nmf | E115: 7576.07413 | F115: 3735.184332 | G115: 2453.612974 | H115: 1811.93734 | I115: 1426.268001 | J115: 1168.638194 | K115: 984.2022487
B116: 0.14 | C116: nmf | D116: nmf | E116: nmf | F116: 7130.33606 | G116: 3519.604788 | H116: 2314.48417 | I116: 1710.846932 | J116: 1347.86171 | K116: 1105.246996
B117: 0.16 | C117: nmf | D117: nmf | E117: nmf | F117: nmf | G117: 6717.580229 | H117: 3319.577831 | I117: 2185.145149 | J117: 1616.696983 | K117: 1274.709642
B119: Note: Data tables are discussed in Chapter 31.

Sheet Page 143
A1: FIXED ASSETS AT COST IS A FUNCTION OF SALES
A2: Sales growth | B2: 0.1
A3: Current assets/Sales | B3: 0.15
A4: Current liabilities/Sales | B4: 0.08
A5: Fixed assets at cost/Sales | B5: 1.07
A6: Costs of goods sold/Sales | B6: 0.5
A7: Depreciation rate | B7: 0.1
A8: Interest rate on debt | B8: 0.1
A9: Interest paid on cash and marketable securities | B9: 0.08
A10: Tax rate | B10: 0.4
A11: Dividend payout ratio | B11: 0.4
A13: Year | B13: 0 | C13: 1 | D13: 2 | E13: 3 | F13: 4 | G13: 5
A14: Income statement
A15: Sales | B15: =1000 -> 1000 | C15: =B15*(1+$B$2) -> 1100 | D15: =C15*(1+$B$2) -> 1210 | E15: =D15*(1+$B$2) -> 1331 | F15: =E15*(1+$B$2) -> 1464.1 | G15: =F15*(1+$B$2) -> 1610.51
A16: Costs of goods sold | B16: =-B15*$B$6 -> -500 | C16: -550 | D16: -605 | E16: -665.5 | F16: -732.05 | G16: -805.255
A17: Interest payments on debt | B17: =-$B$8*B36 -> -32 | C17: =-$B$8*(B36+C36)/2 -> -32 | D17: =-$B$8*(C36+D36)/2 -> -32 | E17: =-$B$8*(D36+E36)/2 -> -32 | F17: =-$B$8*(E36+F36)/2 -> -32 | G17: =-$B$8*(F36+G36)/2 -> -32
A18: Interest earned on cash and marketable securities | B18: =$B$9*B27 -> 6.4 | C18: =$B$9*(B27+C27)/2 -> 12.35324675 | D18: =$B$9*(C27+D27)/2 -> 25.06642604 | E18: =$B$9*(D27+E27)/2 -> 39.47982161 | F18: =$B$9*(E27+F27)/2 -> 55.77598782 | G18: =$B$9*(F27+G27)/2 -> 74.15610071
A19: Depreciation | B19: -100 | C19: =-$B$7*(C30+B30)/2 -> -112.35 | D19: =-$B$7*(D30+C30)/2 -> -123.585 | E19: =-$B$7*(E30+D30)/2 -> -135.9435 | F19: =-$B$7*(F30+E30)/2 -> -149.53785 | G19: =-$B$7*(G30+F30)/2 -> -164.491635 | H19: =getformula(G19) -> <-- =-$B$7*(G30+F30)/2
A20: Profit before tax | B20: =SUM(B15:B19) -> 374.4 | C20: 418.0032468 | D20: 474.481426 | E20: 537.0363216 | F20: 606.2881378 | G20: 682.9194657
A21: Taxes | B21: =-B20*$B$10 -> -149.76 | C21: -167.2012987 | D21: -189.7925704 | E21: -214.8145286 | F21: -242.5152551 | G21: -273.1677863
A22: Profit after tax | B22: =B21+B20 -> 224.64 | C22: 250.8019481 | D22: 284.6888556 | E22: 322.221793 | F22: 363.7728827 | G22: 409.7516794
A23: Dividends | B23: =-B22*$B$11 -> -89.856 | C23: =-$B$11*C22 -> -100.3207792 | D23: =-$B$11*D22 -> -113.8755422 | E23: =-$B$11*E22 -> -128.8887172 | F23: =-$B$11*F22 -> -145.5091531 | G23: =-$B$11*G22 -> -163.9006718
A24: Retained earnings | B24: =B23+B22 -> 134.784 | C24: 150.4811688 | D24: 170.8133134 | E24: 193.3330758 | F24: 218.2637296 | G24: 245.8510077
A26: Balance sheet
A27: Cash and marketable securities | B27: 80 | C27: =C39-C28-C32 -> 228.8311688 | D27: =D39-D28-D32 -> 397.8294822 | E27: =E39-E28-E32 -> 589.166058 | F27: =F39-F28-F32 -> 805.2336376 | G27: =G39-G28-G32 -> 1048.66888
A28: Current assets | B28: =$B$3*B15 -> 150 | C28: =C15*$B$3 -> 165 | D28: =D15*$B$3 -> 181.5 | E28: =E15*$B$3 -> 199.65 | F28: =F15*$B$3 -> 219.615 | G28: =G15*$B$3 -> 241.5765
A29: Fixed assets
A30: At cost | B30: 1070 | C30: =$B$5*C15 -> 1177 | D30: =$B$5*D15 -> 1294.7 | E30: 1424.17 | F30: 1566.587 | G30: 1723.2457 | H30: =getformula(G30) -> <-- =$B$5*G15
A31: Depreciation | B31: -300 | C31: =B31+C19 -> -412.35 | D31: =C31+D19 -> -535.935 | E31: =D31+E19 -> -671.8785 | F31: =E31+F19 -> -821.41635 | G31: =F31+G19 -> -985.907985 | H31: =getformula(G31) -> <-- =F31+G19
A32: Net fixed assets | B32: =B30+B31 -> 770 | C32: =C30+C31 -> 764.65 | D32: =D30+D31 -> 758.765 | E32: 752.2915 | F32: 745.17065 | G32: 737.337715 | H32: =getformula(G32) -> <-- =G30+G31
A33: Total assets | B33: =B27+B28+B32 -> 1000 | C33: =C32+C28+C27 -> 1158.481169 | D33: =D32+D28+D27 -> 1338.094482 | E33: =E32+E28+E27 -> 1541.107558 | F33: =F32+F28+F27 -> 1770.019288 | G33: =G32+G28+G27 -> 2027.583095
A35: Current liabilities | B35: =B15*$B$4 -> 80 | C35: 88 | D35: 96.8 | E35: 106.48 | F35: 117.128 | G35: 128.8408
A36: Debt | B36: =B33-B35-B37-B38 -> 320 | C36: =B36 -> 320 | D36: 320 | E36: 320 | F36: 320 | G36: 320
A37: Stock | B37: 450 | C37: 450 | D37: 450 | E37: 450 | F37: 450 | G37: 450
A38: Accumulated retained earnings | B38: 150 | C38: =B38+C24 -> 300.4811688 | D38: =C38+D24 -> 471.2944822 | E38: =D38+E24 -> 664.627558 | F38: =E38+F24 -> 882.8912876 | G38: =F38+G24 -> 1128.742295
A39: Total liabilities and equity | B39: =SUM(B35:B38) -> 1000 | C39: 1158.481169 | D39: 1338.094482 | E39: 1541.107558 | F39: 1770.019288 | G39: 2027.583095

Sheet Page 143, bottom
A1: NET FIXED ASSETS CONSTANT Depreciation reinvested into fixed assets
A2: Sales growth | B2: 0.1
A3: Current assets/Sales | B3: 0.15
A4: Current liabilities/Sales | B4: 0.08
A5: Net fixed assets | B5: Constant
A6: Costs of goods sold/Sales | B6: 0.5
A7: Depreciation rate | B7: 0.1
A8: Interest rate on debt | B8: 0.1
A9: Interest paid on cash and marketable securities | B9: 0.08
A10: Tax rate | B10: 0.4
A11: Dividend payout ratio | B11: 0.4
A13: Year | B13: 0 | C13: 1 | D13: 2 | E13: 3 | F13: 4 | G13: 5
A14: Income statement
A15: Sales | B15: =1000 -> 1000 | C15: =B15*(1+$B$2) -> 1100 | D15: =C15*(1+$B$2) -> 1210 | E15: =D15*(1+$B$2) -> 1331 | F15: =E15*(1+$B$2) -> 1464.1 | G15: =F15*(1+$B$2) -> 1610.51
A16: Costs of goods sold | B16: =-B15*$B$6 -> -500 | C16: -550 | D16: -605 | E16: -665.5 | F16: -732.05 | G16: -805.255
A17: Interest payments on debt | B17: =-$B$8*B36 -> -32 | C17: =-$B$8*(B36+C36)/2 -> -32 | D17: =-$B$8*(C36+D36)/2 -> -32 | E17: =-$B$8*(D36+E36)/2 -> -32 | F17: =-$B$8*(E36+F36)/2 -> -32 | G17: =-$B$8*(F36+G36)/2 -> -32
A18: Interest earned on cash and marketable securities | B18: =$B$9*B27 -> 6.4 | C18: =$B$9*(B27+C27)/2 -> 12.13200615 | D18: =$B$9*(C27+D27)/2 -> 24.36545435 | E18: =$B$9*(D27+E27)/2 -> 38.21954038 | F18: =$B$9*(E27+F27)/2 -> 53.86601791 | G18: =$B$9*(F27+G27)/2 -> 71.49389706
A19: Depreciation | B19: -100 | C19: =-$B$7*(C30+B30)/2 -> -112.6315789 | D19: =-$B$7*(D30+C30)/2 -> -124.4875346 | E19: =-$B$7*(E30+D30)/2 -> -137.5914856 | F19: =-$B$7*(F30+E30)/2 -> -152.0747999 | G19: =-$B$7*(G30+F30)/2 -> -168.0826736 | H19: =getformula(G19) -> <-- =-$B$7*(G30+F30)/2
A20: Profit before tax | B20: =SUM(B15:B19) -> 374.4 | C20: 417.5004272 | D20: 472.8779197 | E20: 534.1280547 | F20: 601.841218 | G20: 676.6662235
A21: Taxes | B21: =-B20*$B$10 -> -149.76 | C21: -167.0001709 | D21: -189.1511679 | E21: -213.6512219 | F21: -240.7364872 | G21: -270.6664894
A22: Profit after tax | B22: =B21+B20 -> 224.64 | C22: 250.5002563 | D22: 283.7267518 | E22: 320.4768328 | F22: 361.1047308 | G22: 405.9997341
A23: Dividends | B23: =-B22*$B$11 -> -89.856 | C23: =-$B$11*C22 -> -100.2001025 | D23: =-$B$11*D22 -> -113.4907007 | E23: =-$B$11*E22 -> -128.1907331 | F23: =-$B$11*F22 -> -144.4418923 | G23: =-$B$11*G22 -> -162.3998936
A24: Retained earnings | B24: =B23+B22 -> 134.784 | C24: 150.3001538 | D24: 170.2360511 | E24: 192.2860997 | F24: 216.6628385 | G24: 243.5998404
A26: Balance sheet
A27: Cash and marketable securities | B27: 80 | C27: =C39-C28-C32 -> 223.3001538 | D27: =D39-D28-D32 -> 385.8362049 | E27: =E39-E28-E32 -> 569.6523046 | F27: =F39-F28-F32 -> 776.9981431 | G27: =G39-G28-G32 -> 1010.349284
A28: Current assets | B28: =$B$3*B15 -> 150 | C28: =C15*$B$3 -> 165 | D28: =D15*$B$3 -> 181.5 | E28: =E15*$B$3 -> 199.65 | F28: =F15*$B$3 -> 219.615 | G28: =G15*$B$3 -> 241.5765
A29: Fixed assets
A30: At cost | B30: 1070 | C30: =C32-C31 -> 1182.631579 | D30: =D32-D31 -> 1307.119114 | E30: 1444.710599 | F30: 1596.785399 | G30: 1764.868073 | H30: =getformula(G30) -> <-- =G32-G31
A31: Depreciation | B31: -300 | C31: =B31+C19 -> -412.6315789 | D31: =C31+D19 -> -537.1191136 | E31: =D31+E19 -> -674.7105992 | F31: =E31+F19 -> -826.7853991 | G31: =F31+G19 -> -994.8680727 | H31: =getformula(G31) -> <-- =F31+G19
A32: Net fixed assets | B32: =B30+B31 -> 770 | C32: =B32 -> 770 | D32: =C32 -> 770 | E32: 770 | F32: 770 | G32: 770 | H32: =getformula(G32) -> <-- =F32
A33: Total assets | B33: =B27+B28+B32 -> 1000 | C33: =C32+C28+C27 -> 1158.300154 | D33: =D32+D28+D27 -> 1337.336205 | E33: =E32+E28+E27 -> 1539.302305 | F33: =F32+F28+F27 -> 1766.613143 | G33: =G32+G28+G27 -> 2021.925784
A35: Current liabilities | B35: =B15*$B$4 -> 80 | C35: 88 | D35: 96.8 | E35: 106.48 | F35: 117.128 | G35: 128.8408
A36: Debt | B36: =B33-B35-B37-B38 -> 320 | C36: =B36 -> 320 | D36: 320 | E36: 320 | F36: 320 | G36: 320
A37: Stock | B37: 450 | C37: 450 | D37: 450 | E37: 450 | F37: 450 | G37: 450
A38: Accumulated retained earnings | B38: 150 | C38: =B38+C24 -> 300.3001538 | D38: =C38+D24 -> 470.5362049 | E38: =D38+E24 -> 662.8223046 | F38: =E38+F24 -> 879.4851431 | G38: =F38+G24 -> 1123.084984
A39: Total liabilities and equity | B39: =SUM(B35:B38) -> 1000 | C39: 1158.300154 | D39: 1337.336205 | E39: 1539.302305 | F39: 1766.613143 | G39: 2021.925784
A41: Year | B41: 0 | C41: 1 | D41: 2 | E41: 3 | F41: 4 | G41: 5
A42: Free cash flow calculation
A43: Profit after tax | C43: =C22 -> 250.5002563 | D43: =D22 -> 283.7267518 | E43: =E22 -> 320.4768328 | F43: =F22 -> 361.1047308 | G43: =G22 -> 405.9997341
A44: Add back depreciation | C44: =-C19 -> 112.6315789 | D44: =-D19 -> 124.4875346 | E44: =-E19 -> 137.5914856 | F44: =-F19 -> 152.0747999 | G44: =-G19 -> 168.0826736 | H44: =getformula(G44) -> <-- =-G19
A45: Subtract increase in current assets | C45: =-(C28-B28) -> -15 | D45: =-(D28-C28) -> -16.5 | E45: =-(E28-D28) -> -18.15 | F45: =-(F28-E28) -> -19.965 | G45: =-(G28-F28) -> -21.9615
A46: Add back increase in current liabilities | C46: =C35-B35 -> 8 | D46: =D35-C35 -> 8.8 | E46: =E35-D35 -> 9.68 | F46: =F35-E35 -> 10.648 | G46: =G35-F35 -> 11.7128
A47: Subtract increase in fixed assets at cost | C47: =-(C30-B30) -> -112.6315789 | D47: =-(D30-C30) -> -124.4875346 | E47: =-(E30-D30) -> -137.5914856 | F47: =-(F30-E30) -> -152.0747999 | G47: =-(G30-F30) -> -168.0826736 | H47: =getformula(G47) -> <-- =-(G30-F30)
A48: Add back after-tax interest on debt | C48: =-(1-$B$10)*C17 -> 19.2 | D48: 19.2 | E48: 19.2 | F48: 19.2 | G48: 19.2
A49: Subtract after-tax interest on cash and mkt. securities | C49: -7.279203691 | D49: -14.61927261 | E49: -22.93172423 | F49: -32.31961074 | G49: -42.89633824
A50: Free cash flow | C50: =SUM(C43:C49) -> 255.4210526 | D50: =SUM(D43:D49) -> 280.6074792 | E50: =SUM(E43:E49) -> 308.2751086 | F50: =SUM(F43:F49) -> 338.66812 | G50: =SUM(G43:G49) -> 372.0546958

Sheet Page 146
A1: NEGATIVE CASH BALANCES: ILLUSTRATION
A2: Sales growth | B2: 0.2 | C2: <-- Increased from 10%
A3: Current assets/Sales | B3: 0.2 | C3: <-- Increased from 15%
A4: Current liabilities/Sales | B4: 0.08
A5: Net fixed assets/Sales | B5: 0.8 | C5: <-- Increased from 77%
A6: Costs of goods sold/Sales | B6: 0.5
A7: Depreciation rate | B7: 0.1
A8: Interest rate on debt | B8: 0.1
A9: Interest paid on cash and marketable securities | B9: 0.08
A10: Tax rate | B10: 0.4
A11: Dividend payout ratio | B11: 0.5 | C11: <-- Increased from 40%
A13: Year | B13: 0 | C13: 1 | D13: 2 | E13: 3 | F13: 4 | G13: 5
A14: Income statement
A15: Sales | B15: =1000 -> 1000 | C15: =B15*(1+$B$2) -> 1200 | D15: =C15*(1+$B$2) -> 1440 | E15: =D15*(1+$B$2) -> 1728 | F15: =E15*(1+$B$2) -> 2073.6 | G15: =F15*(1+$B$2) -> 2488.32
A16: Costs of goods sold | B16: =-B15*$B$6 -> -500 | C16: -600 | D16: -720 | E16: -864 | F16: -1036.8 | G16: -1244.16
A17: Interest payments on debt | B17: =-$B$8*B36 -> -40 | C17: =-$B$8*(B36+C36)/2 -> -40 | D17: =-$B$8*(C36+D36)/2 -> -40 | E17: =-$B$8*(D36+E36)/2 -> -40 | F17: =-$B$8*(E36+F36)/2 -> -40 | G17: =-$B$8*(F36+G36)/2 -> -40
A18: Interest earned on cash and marketable securities | B18: =$B$9*B27 -> 6.4 | C18: =$B$9*(B27+C27)/2 -> 4.32132964 | D18: =$B$9*(C27+D27)/2 -> -0.3027128871 | E18: =$B$9*(D27+E27)/2 -> -5.963378856 | F18: =$B$9*(E27+F27)/2 -> -12.88890149 | G18: =$B$9*(F27+G27)/2 -> -21.35558357
A19: Depreciation | B19: -100 | C19: =-$B$7*(C30+B30)/2 -> -124.2105263 | D19: =-$B$7*(D30+C30)/2 -> -155.8116343 | E19: =-$B$7*(E30+D30)/2 -> -194.444438 | F19: =-$B$7*(F30+E30)/2 -> -241.5901683 | G19: =-$B$7*(G30+F30)/2 -> -299.034186
A20: Profit before tax | B20: =SUM(B15:B19) -> 366.4 | C20: 440.1108033 | D20: 523.8856528 | E20: 623.5921832 | F20: 742.3209302 | G20: 883.7702304
A21: Taxes | B21: =-B20*$B$10 -> -146.56 | C21: -176.0443213 | D21: -209.5542611 | E21: -249.4368733 | F21: -296.9283721 | G21: -353.5080922
A22: Profit after tax | B22: =B21+B20 -> 219.84 | C22: 264.066482 | D22: 314.3313917 | E22: 374.1553099 | F22: 445.3925581 | G22: 530.2621383
A23: Dividends | B23: =-B22*$B$11 -> -109.92 | C23: =-$B$11*C22 -> -132.033241 | D23: =-$B$11*D22 -> -157.1656958 | E23: =-$B$11*E22 -> -187.077655 | F23: =-$B$11*F22 -> -222.6962791 | G23: =-$B$11*G22 -> -265.1310691
A24: Retained earnings | B24: =B23+B22 -> 109.92 | C24: 132.033241 | D24: 157.1656958 | E24: 187.077655 | F24: 222.6962791 | G24: 265.1310691
A26: Balance sheet
A27: Cash and marketable securities | B27: 80 | C27: =C39-C28-C32 -> 28.033241 | D27: =D39-D28-D32 -> -35.60106317 | E27: =E39-E28-E32 -> -113.4834082 | F27: =F39-F28-F32 -> -208.7391292 | G27: =G39-G28-G32 -> -325.15046
A28: Current assets | B28: =$B$3*B15 -> 200 | C28: =C15*$B$3 -> 240 | D28: =D15*$B$3 -> 288 | E28: =E15*$B$3 -> 345.6 | F28: =F15*$B$3 -> 414.72 | G28: =G15*$B$3 -> 497.664
A29: Fixed assets
A30: At cost | B30: =B32-B31 -> 1100 | C30: 1384.210526 | D30: 1732.022161 | E30: 2156.866599 | F30: 2674.936767 | G30: 3305.746953
A31: Depreciation | B31: -300 | C31: =B31+C19 -> -424.2105263 | D31: =C31-$B$7*(D30+C30)/2 -> -580.0221607 | E31: =D31-$B$7*(E30+D30)/2 -> -774.4665986 | F31: =E31-$B$7*(F30+E30)/2 -> -1016.056767 | G31: =F31-$B$7*(G30+F30)/2 -> -1315.090953
A32: Net fixed assets | B32: =B15*$B$5 -> 800 | C32: 960 | D32: 1152 | E32: 1382.4 | F32: 1658.88 | G32: 1990.656
A33: Total assets | B33: =B27+B28+B32 -> 1080 | C33: =C32+C28+C27 -> 1228.033241 | D33: =D32+D28+D27 -> 1404.398937 | E33: =E32+E28+E27 -> 1614.516592 | F33: =F32+F28+F27 -> 1864.860871 | G33: =G32+G28+G27 -> 2163.16954
A35: Current liabilities | B35: =B15*$B$4 -> 80 | C35: 96 | D35: 115.2 | E35: 138.24 | F35: 165.888 | G35: 199.0656
A36: Debt | B36: =B33-B35-B37-B38 -> 400 | C36: =B36 -> 400 | D36: 400 | E36: 400 | F36: 400 | G36: 400
A37: Stock | B37: 450 | C37: 450 | D37: 450 | E37: 450 | F37: 450 | G37: 450
A38: Accumulated retained earnings | B38: 150 | C38: =B38+C24 -> 282.033241 | D38: =C38+D24 -> 439.1989368 | E38: =D38+E24 -> 626.2765918 | F38: =E38+F24 -> 848.9728708 | G38: =F38+G24 -> 1114.10394
A39: Total liabilities and equity | B39: =SUM(B35:B38) -> 1080 | C39: 1228.033241 | D39: 1404.398937 | E39: 1614.516592 | F39: 1864.860871 | G39: 2163.16954
A41: Year | B41: 0 | C41: 1 | D41: 2 | E41: 3 | F41: 4 | G41: 5
A42: Free cash flow calculation
A43: Profit after tax | C43: =C22 -> 264.066482 | D43: =D22 -> 314.3313917 | E43: =E22 -> 374.1553099 | F43: =F22 -> 445.3925581 | G43: =G22 -> 530.2621383
A44: Add back depreciation | C44: =-C19 -> 124.2105263 | D44: =-D19 -> 155.8116343 | E44: =-E19 -> 194.444438 | F44: =-F19 -> 241.5901683 | G44: =-G19 -> 299.034186
A45: Subtract increase in current assets | C45: =-(C28-B28) -> -40 | D45: =-(D28-C28) -> -48 | E45: =-(E28-D28) -> -57.6 | F45: =-(F28-E28) -> -69.12 | G45: =-(G28-F28) -> -82.944
A46: Add back increase in current liabilities | C46: =C35-B35 -> 16 | D46: =D35-C35 -> 19.2 | E46: =E35-D35 -> 23.04 | F46: =F35-E35 -> 27.648 | G46: =G35-F35 -> 33.1776
A47: Subtract increase in fixed assets at cost | C47: =-(C30-B30) -> -284.2105263 | D47: =-(D30-C30) -> -347.8116343 | E47: =-(E30-D30) -> -424.844438 | F47: =-(F30-E30) -> -518.0701683 | G47: =-(G30-F30) -> -630.810186
A48: Add back after-tax interest on debt | C48: =-(1-$B$10)*C17 -> 24 | D48: 24 | E48: 24 | F48: 24 | G48: 24
A49: Subtract after-tax interest on cash and mkt. securities | C49: -2.592797784 | D49: 0.1816277322 | E49: 3.578027313 | F49: 7.733340897 | G49: 12.81335014
A50: Free cash flow | C50: =SUM(C43:C49) -> 101.4736842 | D50: =SUM(D43:D49) -> 117.7130194 | E50: =SUM(E43:E49) -> 136.7733372 | F50: =SUM(F43:F49) -> 159.173899 | G50: =SUM(G43:G49) -> 185.5330884

Sheet Page 147
A1: NO NEGATIVE CASH BALANCES
A2: Sales growth | B2: 0.2 | C2: <-- Increased from 10%
A3: Current assets/Sales | B3: 0.2 | C3: <-- Increased from 15%
A4: Current liabilities/Sales | B4: 0.08
A5: Net fixed assets/Sales | B5: 0.8 | C5: <-- Increased from 77%
A6: Costs of goods sold/Sales | B6: 0.5
A7: Depreciation rate | B7: 0.1
A8: Interest rate on debt | B8: 0.1
A9: Interest paid on cash and marketable securities | B9: 0.08
A10: Tax rate | B10: 0.4
A11: Dividend payout ratio | B11: 0.5 | C11: <-- Increased from 40%
A13: Year | B13: 0 | C13: 1 | D13: 2 | E13: 3 | F13: 4 | G13: 5
A14: Income statement
A15: Sales | B15: =1000 -> 1000 | C15: =B15*(1+$B$2) -> 1200 | D15: =C15*(1+$B$2) -> 1440 | E15: =D15*(1+$B$2) -> 1728 | F15: =E15*(1+$B$2) -> 2073.6 | G15: =F15*(1+$B$2) -> 2488.32
A16: Costs of goods sold | B16: =-B15*$B$6 -> -500 | C16: -600 | D16: -720 | E16: -864 | F16: -1036.8 | G16: -1244.16
A17: Interest payments on debt | B17: =-$B$8*B36 -> -40 | C17: =-$B$8*(B36+C36)/2 -> -40 | D17: =-$B$8*(C36+D36)/2 -> -41.78547464 | E17: =-$B$8*(D36+E36)/2 -> -47.48793487 | F17: =-$B$8*(E36+F36)/2 -> -56.21763755 | G17: =-$B$8*(F36+G36)/2 -> -66.93460653
A18: Interest earned on cash and marketable securities | B18: =$B$9*B27 -> 6.4 | C18: =$B$9*(B27+C27)/2 -> 4.32132964 | D18: =$B$9*(C27+D27)/2 -> 1.12132964 | E18: =$B$9*(D27+E27)/2 -> 0 | F18: =$B$9*(E27+F27)/2 -> 0 | G18: =$B$9*(F27+G27)/2 -> 0
A19: Depreciation | B19: -100 | C19: =-$B$7*(C30+B30)/2 -> -124.2105263 | D19: =-$B$7*(D30+C30)/2 -> -155.8116343 | E19: =-$B$7*(E30+D30)/2 -> -194.444438 | F19: =-$B$7*(F30+E30)/2 -> -241.5901683 | G19: =-$B$7*(G30+F30)/2 -> -299.034186
A20: Profit before tax | B20: =SUM(B15:B19) -> 366.4 | C20: 440.1108033 | D20: 523.5242207 | E20: 622.0676272 | F20: 738.9921942 | G20: 878.1912075
A21: Taxes | B21: =-B20*$B$10 -> -146.56 | C21: -176.0443213 | D21: -209.4096883 | E21: -248.8270509 | F21: -295.5968777 | G21: -351.276483
A22: Profit after tax | B22: =B21+B20 -> 219.84 | C22: 264.066482 | D22: 314.1145324 | E22: 373.2405763 | F22: 443.3953165 | G22: 526.9147245
A23: Dividends | B23: =-B22*$B$11 -> -109.92 | C23: =-$B$11*C22 -> -132.033241 | D23: =-$B$11*D22 -> -157.0572662 | E23: =-$B$11*E22 -> -186.6202881 | F23: =-$B$11*F22 -> -221.6976583 | G23: =-$B$11*G22 -> -263.4573622
A24: Retained earnings | B24: =B23+B22 -> 109.92 | C24: 132.033241 | D24: 157.0572662 | E24: 186.6202881 | F24: 221.6976583 | G24: 263.4573622
A26: Balance sheet
A27: Cash and marketable securities | B27: 80 | C27: =C39-C28-C32 -> 28.033241 | D27: =D39-D28-D32 -> 0 | E27: =E39-E28-E32 -> 0 | F27: =F39-F28-F32 -> 0 | G27: =G39-G28-G32 -> 0 | H27: =getformula(G27) -> <-- =G39-G28-G32
A28: Current assets | B28: =$B$3*B15 -> 200 | C28: =C15*$B$3 -> 240 | D28: =D15*$B$3 -> 288 | E28: =E15*$B$3 -> 345.6 | F28: =F15*$B$3 -> 414.72 | G28: =G15*$B$3 -> 497.664
A29: Fixed assets
A30: At cost | B30: =B32-B31 -> 1100 | C30: 1384.210526 | D30: 1732.022161 | E30: 2156.866599 | F30: 2674.936767 | G30: 3305.746953
A31: Depreciation | B31: -300 | C31: =B31+C19 -> -424.2105263 | D31: =C31+D19 -> -580.0221607 | E31: =D31+E19 -> -774.4665986 | F31: =E31+F19 -> -1016.056767 | G31: =F31+G19 -> -1315.090953
A32: Net fixed assets | B32: =B15*$B$5 -> 800 | C32: 960 | D32: 1152 | E32: 1382.4 | F32: 1658.88 | G32: 1990.656
A33: Total assets | B33: =B27+B28+B32 -> 1080 | C33: =C32+C28+C27 -> 1228.033241 | D33: =D32+D28+D27 -> 1440 | E33: =E32+E28+E27 -> 1728 | F33: =F32+F28+F27 -> 2073.6 | G33: =G32+G28+G27 -> 2488.32
A35: Current liabilities | B35: =B15*$B$4 -> 80 | C35: 96 | D35: 115.2 | E35: 138.24 | F35: 165.888 | G35: 199.0656
A36: Debt | B36: =B33-B35-B37-B38 -> 400 | C36: =MAX(C28+C32-C35-C37-C38,B36) -> 400 | D36: =MAX(D28+D32-D35-D37-D38,C36) -> 435.7094928 | E36: =MAX(E28+E32-E35-E37-E38,D36) -> 514.0492047 | F36: =MAX(F28+F32-F35-F37-F38,E36) -> 610.3035464 | G36: =MAX(G28+G32-G35-G37-G38,F36) -> 728.3885842 | H36: =getformula(G36) -> <-- =MAX(G28+G32-G35-G37-G38,F36)
A37: Stock | B37: 450 | C37: =B37 -> 450 | D37: =C37 -> 450 | E37: =D37 -> 450 | F37: =E37 -> 450 | G37: =F37 -> 450
A38: Accumulated retained earnings | B38: 150 | C38: =B38+C24 -> 282.033241 | D38: =C38+D24 -> 439.0905072 | E38: =D38+E24 -> 625.7107953 | F38: =E38+F24 -> 847.4084536 | G38: =F38+G24 -> 1110.865816
A39: Total liabilities and equity | B39: =SUM(B35:B38) -> 1080 | C39: 1228.033241 | D39: 1440 | E39: 1728 | F39: 2073.6 | G39: 2488.32
A41: Year | B41: 0 | C41: 1 | D41: 2 | E41: 3 | F41: 4 | G41: 5
A42: Free cash flow calculation
A43: Profit after tax | C43: =C22 -> 264.066482 | D43: =D22 -> 314.1145324 | E43: =E22 -> 373.2405763 | F43: =F22 -> 443.3953165 | G43: =G22 -> 526.9147245
A44: Add back depreciation | C44: =-C19 -> 124.2105263 | D44: =-D19 -> 155.8116343 | E44: =-E19 -> 194.444438 | F44: =-F19 -> 241.5901683 | G44: =-G19 -> 299.034186
A45: Subtract increase in current assets | C45: =-(C28-B28) -> -40 | D45: =-(D28-C28) -> -48 | E45: =-(E28-D28) -> -57.6 | F45: =-(F28-E28) -> -69.12 | G45: =-(G28-F28) -> -82.944
A46: Add back increase in current liabilities | C46: =C35-B35 -> 16 | D46: =D35-C35 -> 19.2 | E46: =E35-D35 -> 23.04 | F46: =F35-E35 -> 27.648 | G46: =G35-F35 -> 33.1776
A47: Subtract increase in fixed assets at cost | C47: =-(C30-B30) -> -284.2105263 | D47: =-(D30-C30) -> -347.8116343 | E47: =-(E30-D30) -> -424.844438 | F47: =-(F30-E30) -> -518.0701683 | G47: =-(G30-F30) -> -630.810186
A48: Add back after-tax interest on debt | C48: =-(1-$B$10)*C17 -> 24 | D48: 25.07128478 | E48: 28.49276092 | F48: 33.73058253 | G48: 40.16076392
A49: Subtract after-tax interest on cash and mkt. securities | C49: -2.592797784 | D49: -0.6727977839 | E49: 0 | F49: 0 | G49: 0
A50: Free cash flow | C50: =SUM(C43:C49) -> 101.4736842 | D50: =SUM(D43:D49) -> 117.7130194 | E50: =SUM(E43:E49) -> 136.7733372 | F50: =SUM(F43:F49) -> 159.173899 | G50: =SUM(G43:G49) -> 185.5330884

Sheet Page 149
A1: TARGET DEBT/EQUITY RATIO Cash is fixed, ratio of debt/equity changes in each year
A2: Sales growth | B2: 0.1
A3: Current assets/Sales | B3: 0.15
A4: Current liabilities/Sales | B4: 0.08
A5: Net fixed assets/Sales | B5: 0.77
A6: Costs of goods sold/Sales | B6: 0.5
A7: Depreciation rate | B7: 0.1
A8: Interest rate on debt | B8: 0.1
A9: Interest paid on cash & marketable securities | B9: 0.08
A10: Tax rate | B10: 0.4
A11: Dividend payout ratio | B11: 0.6
A13: Year | B13: 0 | C13: 1 | D13: 2 | E13: 3 | F13: 4 | G13: 5
A14: Income statement
A15: Sales | B15: =1000 -> 1000 | C15: =B15*(1+$B$2) -> 1100 | D15: =C15*(1+$B$2) -> 1210 | E15: =D15*(1+$B$2) -> 1331 | F15: =E15*(1+$B$2) -> 1464.1 | G15: =F15*(1+$B$2) -> 1610.51
A16: Costs of goods sold | B16: =-B15*$B$6 -> -500 | C16: -550 | D16: -605 | E16: -665.5 | F16: -732.05 | G16: -805.255
A17: Interest payments on debt | B17: =-$B$8*B36 -> -32 | C17: =-$B$8*(B36+C36)/2 -> -30.34285714 | D17: =-$B$8*(C36+D36)/2 -> -28.55544974 | E17: =-$B$8*(D36+E36)/2 -> -28.03613105 | F17: =-$B$8*(E36+F36)/2 -> -28.93712308 | G17: =-$B$8*(F36+G36)/2 -> -31.64622
A18: Interest earned on cash & marketable securities | B18: =$B$9*B27 -> 6.4 | C18: =$B$9*(B27+C27)/2 -> 6.4 | D18: =$B$9*(C27+D27)/2 -> 6.4 | E18: =$B$9*(D27+E27)/2 -> 6.4 | F18: =$B$9*(E27+F27)/2 -> 6.4 | G18: =$B$9*(F27+G27)/2 -> 6.4
A19: Depreciation | B19: -100 | C19: =-$B$7*(C30+B30)/2 -> -116.6842105 | D19: =-$B$7*(D30+C30)/2 -> -137.4772853 | E19: =-$B$7*(E30+D30)/2 -> -161.3101575 | F19: =-$B$7*(F30+E30)/2 -> -188.5879109 | G19: =-$B$7*(G30+F30)/2 -> -219.7667804
A20: Profit before tax | B20: =SUM(B15:B19) -> 374.4 | C20: 409.3729323 | D20: 445.3672649 | E20: 482.5537115 | F20: 520.924966 | G20: 560.2419996
A21: Taxes | B21: =-B20*$B$10 -> -149.76 | C21: -163.7491729 | D21: -178.146906 | E21: -193.0214846 | F21: -208.3699864 | G21: -224.0967998
A22: Profit after tax | B22: =B21+B20 -> 224.64 | C22: 245.6237594 | D22: 267.220359 | E22: 289.5322269 | F22: 312.5549796 | G22: 336.1451997
A23: Dividends | B23: =-B22*$B$11 -> -134.784 | C23: =-$B$11*C22 -> -147.3742556 | D23: =-$B$11*D22 -> -160.3322154 | E23: =-$B$11*E22 -> -173.7193361 | F23: =-$B$11*F22 -> -187.5329878 | G23: =-$B$11*G22 -> -201.6871198
A24: Retained earnings | B24: =B23+B22 -> 89.856 | C24: 98.24950376 | D24: 106.8881436 | E24: 115.8128908 | F24: 125.0219919 | G24: 134.4580799
A26: Balance sheet
A27: Cash and marketable securities | B27: 80 | C27: =B27 -> 80 | D27: =C27 -> 80 | E27: =D27 -> 80 | F27: =E27 -> 80 | G27: =F27 -> 80
A28: Current assets | B28: =$B$3*B15 -> 150 | C28: =C15*$B$3 -> 165 | D28: =D15*$B$3 -> 181.5 | E28: =E15*$B$3 -> 199.65 | F28: =F15*$B$3 -> 219.615 | G28: =G15*$B$3 -> 241.5765
A29: Fixed assets
A30: At cost | B30: =B32-B31 -> 1070 | C30: 1263.684211 | D30: 1485.861496 | E30: 1740.341653 | F30: 2031.416564 | G30: 2363.919045
A31: Depreciation | B31: -300 | C31: =B31-$B$7*(C30+B30)/2 -> -416.6842105 | D31: =C31-$B$7*(D30+C30)/2 -> -554.1614958 | E31: =D31-$B$7*(E30+D30)/2 -> -715.4716533 | F31: =E31-$B$7*(F30+E30)/2 -> -904.0595642 | G31: =F31-$B$7*(G30+F30)/2 -> -1123.826345
A32: Net fixed assets | B32: =B15*$B$5 -> 770 | C32: 847 | D32: 931.7 | E32: 1024.87 | F32: 1127.357 | G32: 1240.0927
A33: Total assets | B33: =B27+B28+B32 -> 1000 | C33: =C32+C28+C27 -> 1092 | D33: =D32+D28+D27 -> 1193.2 | E33: =E32+E28+E27 -> 1304.52 | F33: =F32+F28+F27 -> 1426.972 | G33: =G32+G28+G27 -> 1561.6692
A35: Current liabilities | B35: =B15*$B$4 -> 80 | C35: 88 | D35: 96.8 | E35: 106.48 | F35: 117.128 | G35: 128.8408
A36: Debt | B36: =B33-B35-B37-B38 -> 320 | C36: =C41*(C37+C38) -> 286.8571429 | D36: =D41*(D37+D38) -> 284.2518519 | E36: =E41*(E37+E38) -> 276.4707692 | F36: =F41*(F37+F38) -> 302.2716923 | G36: =G41*(G37+G38) -> 330.6527077 | H36: =getformula(G36) -> <-- =G41*(G37+G38)
A37: Stock | B37: 450 | C37: =C33-C35-C36-C38 -> 468.8933534 | D37: =D33-D35-D36-D38 -> 457.0105008 | E37: =E33-E35-E36-E38 -> 450.6186927 | F37: =F33-F35-F36-F38 -> 411.5997777 | G37: =G33-G35-G36-G38 -> 371.7450825 | H37: =getformula(G37) -> <-- =G33-G35-G36-G38
A38: Accumulated retained earnings | B38: 150 | C38: =B38+C24 -> 248.2495038 | D38: =C38+D24 -> 355.1376473 | E38: =D38+E24 -> 470.9505381 | F38: =E38+F24 -> 595.97253 | G38: =F38+G24 -> 730.4306098
A39: Total liabilities and equity | B39: =SUM(B35:B38) -> 1000 | C39: 1092 | D39: 1193.2 | E39: 1304.52 | F39: 1426.972 | G39: 1561.6692
A41: Target debt/equity ratio | B41: =B36/(B37+B38) -> 0.5333333333 | C41: 0.4 | D41: 0.35 | E41: 0.3 | F41: =E41 -> 0.3 | G41: =F41 -> 0.3
A43: Year | B43: 0 | C43: 1 | D43: 2 | E43: 3 | F43: 4 | G43: 5
A44: Free cash flow calculation
A45: Profit after tax | C45: =C22 -> 245.6237594 | D45: =D22 -> 267.220359 | E45: =E22 -> 289.5322269 | F45: =F22 -> 312.5549796 | G45: =G22 -> 336.1451997
A46: Add back depreciation | C46: =-C19 -> 116.6842105 | D46: =-D19 -> 137.4772853 | E46: =-E19 -> 161.3101575 | F46: =-F19 -> 188.5879109 | G46: =-G19 -> 219.7667804
A47: Subtract increase in current assets | C47: =-(C28-B28) -> -15 | D47: =-(D28-C28) -> -16.5 | E47: =-(E28-D28) -> -18.15 | F47: =-(F28-E28) -> -19.965 | G47: =-(G28-F28) -> -21.9615
A48: Add back increase in current liabilities | C48: =C35-B35 -> 8 | D48: =D35-C35 -> 8.8 | E48: =E35-D35 -> 9.68 | F48: =F35-E35 -> 10.648 | G48: =G35-F35 -> 11.7128
A49: Subtract increase in fixed assets at cost | C49: =-(C30-B30) -> -193.6842105 | D49: =-(D30-C30) -> -222.1772853 | E49: =-(E30-D30) -> -254.4801575 | F49: =-(F30-E30) -> -291.0749109 | G49: =-(G30-F30) -> -332.5024804
A50: Add back after-tax interest on debt | C50: =-(1-$B$10)*C17 -> 18.20571429 | D50: 17.13326984 | E50: 16.82167863 | F50: 17.36227385 | G50: 18.987732
A51: Subtract after-tax interest on cash & mkt. securities | C51: -3.84 | D51: -3.84 | E51: -3.84 | F51: -3.84 | G51: -3.84
A52: Free cash flow | C52: =SUM(C45:C51) -> 175.9894737 | D52: =SUM(D45:D51) -> 188.1136288 | E52: =SUM(E45:E51) -> 200.8739055 | F52: =SUM(F45:F51) -> 214.2732535 | G52: =SUM(G45:G51) -> 228.3085317

Sheet Pages 151-152
A1: PROJECT FINANCE No dividends, debt repayment schedule fixed, net fixed assets constant
A2: Sales growth | B2: 0.15
A3: Current assets/Sales | B3: 0.15
A4: Current liabilities/Sales | B4: 0.08
A5: Costs of goods sold/Sales | B5: 0.45
A6: Depreciation rate | B6: 0.1
A7: Interest rate on debt | B7: 0.1
A8: Interest paid on cash and marketable securities | B8: 0.08
A9: Tax rate | B9: 0.4
A10: Dividend payout ratio | B10: 0 | C10: <-- No dividends until all the debt is paid off
A12: Year | B12: 0 | C12: 1 | D12: 2 | E12: 3 | F12: 4 | G12: 5
A13: Income statement
A14: Sales | C14: 1150 | D14: =C14*(1+$B$2) -> 1322.5 | E14: =D14*(1+$B$2) -> 1520.875 | F14: =E14*(1+$B$2) -> 1749.00625 | G14: =F14*(1+$B$2) -> 2011.357187
A15: Costs of goods sold | C15: =-C14*$B$5 -> -517.5 | D15: =-D14*$B$5 -> -595.125 | E15: =-E14*$B$5 -> -684.39375 | F15: =-F14*$B$5 -> -787.0528125 | G15: =-G14*$B$5 -> -905.1107344
A16: Interest payments on debt | C16: =-$B$7*(B35+C35)/2 -> -90 | D16: =-$B$7*(C35+D35)/2 -> -70 | E16: =-$B$7*(D35+E35)/2 -> -50 | F16: =-$B$7*(E35+F35)/2 -> -30 | G16: =-$B$7*(F35+G35)/2 -> -10
A17: Interest earned on cash and marketable securities | C17: =$B$8*(B26+C26)/2 -> 0.765746333 | D17: =$B$8*(C26+D26)/2 -> 3.320701979 | E17: =$B$8*(D26+E26)/2 -> 9.485330906 | F17: =$B$8*(E26+F26)/2 -> 21.27747789 | G17: =$B$8*(F26+G26)/2 -> 39.681742
A18: Depreciation | C18: =-$B$6*(C29+B29)/2 -> -210.5263158 | D18: =-$B$6*(D29+C29)/2 -> -232.6869806 | E18: =-$B$6*(E29+D29)/2 -> -257.180347 | F18: =-$B$6*(F29+E29)/2 -> -284.2519625 | G18: =-$B$6*(G29+F29)/2 -> -314.1732217
A19: Profit before tax | C19: =SUM(C14:C18) -> 332.7394305 | D19: =SUM(D14:D18) -> 428.0087214 | E19: =SUM(E14:E18) -> 538.7862339 | F19: =SUM(F14:F18) -> 668.9789529 | G19: =SUM(G14:G18) -> 821.7549735
A20: Taxes | C20: =-C19*$B$9 -> -133.0957722 | D20: =-D19*$B$9 -> -171.2034885 | E20: =-E19*$B$9 -> -215.5144936 | F20: =-F19*$B$9 -> -267.5915812 | G20: =-G19*$B$9 -> -328.7019894
A21: Profit after tax | C21: =C20+C19 -> 199.6436583 | D21: =D20+D19 -> 256.8052328 | E21: =E20+E19 -> 323.2717403 | F21: =F20+F19 -> 401.3873718 | G21: =G20+G19 -> 493.0529841
A22: Dividends | C22: =-$B$10*C21 -> 0 | D22: =-$B$10*D21 -> 0 | E22: =-$B$10*E21 -> 0 | F22: =-$B$10*F21 -> 0 | G22: =-$B$10*G21 -> 0
A23: Retained earnings | C23: =C22+C21 -> 199.6436583 | D23: =D22+D21 -> 256.8052328 | E23: =E22+E21 -> 323.2717403 | F23: =F22+F21 -> 401.3873718 | G23: =G22+G21 -> 493.0529841
A25: Balance sheet
A26: Cash and marketable securities | B26: 0 | C26: =C38-C27-C31 -> 19.14365833 | D26: =D38-D27-D31 -> 63.87389115 | E26: =E38-E27-E31 -> 173.2593815 | F26: =F38-F27-F31 -> 358.6775658 | G26: =G38-G27-G31 -> 633.3659842 | H26: =getformula(G26) -> <-- =G38-G27-G31
A27: Current assets | B27: 200 | C27: =C14*$B$3 -> 172.5 | D27: =D14*$B$3 -> 198.375 | E27: =E14*$B$3 -> 228.13125 | F27: =F14*$B$3 -> 262.3509375 | G27: =G14*$B$3 -> 301.7035781
A28: Fixed assets
A29: At cost | B29: 2000 | C29: =C31-C30 -> 2210.526316 | D29: =D31-D30 -> 2443.213296 | E29: =E31-E30 -> 2700.393643 | F29: =F31-F30 -> 2984.645606 | G29: =G31-G30 -> 3298.818828
A30: Depreciation | B30: 0 | C30: =B30-$B$6*(C29+B29)/2 -> -210.5263158 | D30: =C30-$B$6*(D29+C29)/2 -> -443.2132964 | E30: =D30-$B$6*(E29+D29)/2 -> -700.3936434 | F30: =E30-$B$6*(F29+E29)/2 -> -984.6456059 | G30: =F30-$B$6*(G29+F29)/2 -> -1298.818828 | H30: =getformula(G30) -> <-- =F30-$B$6*(G29+F29)/2
A31: Net fixed assets | B31: =B29-B30 -> 2000 | C31: =B31 -> 2000 | D31: =C31 -> 2000 | E31: =D31 -> 2000 | F31: =E31 -> 2000 | G31: =F31 -> 2000 | H31: <-- NFA don't change
A32: Total assets | B32: =B26+B27+B31 -> 2200 | C32: =C31+C27+C26 -> 2191.643658 | D32: =D31+D27+D26 -> 2262.248891 | E32: =E31+E27+E26 -> 2401.390631 | F32: =F31+F27+F26 -> 2621.028503 | G32: =G31+G27+G26 -> 2935.069562
A34: Current liabilities | B34: 100 | C34: =C14*$B$4 -> 92 | D34: =D14*$B$4 -> 105.8 | E34: =E14*$B$4 -> 121.67 | F34: =F14*$B$4 -> 139.9205 | G34: =G14*$B$4 -> 160.908575
A35: Debt | B35: =B32-B34-B36-B37 -> 1000 | C35: =B35-$B$35/5 -> 800 | D35: =C35-$B$35/5 -> 600 | E35: =D35-$B$35/5 -> 400 | F35: =E35-$B$35/5 -> 200 | G35: =F35-$B$35/5 -> 0 | H35: =getformula(G35) -> <-- =F35-$B$35/5
A36: Stock | B36: 1100 | C36: =B36 -> 1100 | D36: =C36 -> 1100 | E36: =D36 -> 1100 | F36: =E36 -> 1100 | G36: =F36 -> 1100
A37: Accumulated retained earnings | B37: 0 | C37: =B37+C23 -> 199.6436583 | D37: =C37+D23 -> 456.4488911 | E37: =D37+E23 -> 779.7206315 | F37: =E37+F23 -> 1181.108003 | G37: =F37+G23 -> 1674.160987
A38: Total liabilities and equity | B38: =SUM(B34:B37) -> 2200 | C38: 2191.643658 | D38: 2262.248891 | E38: 2401.390631 | F38: 2621.028503 | G38: 2935.069562
A41: FREE CASH FLOW CALCULATION
A42: Year | B42: 0 | C42: 1 | D42: 2 | E42: 3 | F42: 4 | G42: 5
A43: Profit after tax | C43: =C21 -> 199.6436583 | D43: =D21 -> 256.8052328 | E43: =E21 -> 323.2717403 | F43: =F21 -> 401.3873718 | G43: =G21 -> 493.0529841
A44: Add back depreciation | C44: =-C18 -> 210.5263158 | D44: =-D18 -> 232.6869806 | E44: =-E18 -> 257.180347 | F44: =-F18 -> 284.2519625 | G44: =-G18 -> 314.1732217
A45: Subtract increase in current assets | C45: =-(C27-B27) -> 27.5 | D45: =-(D27-C27) -> -25.875 | E45: =-(E27-D27) -> -29.75625 | F45: =-(F27-E27) -> -34.2196875 | G45: =-(G27-F27) -> -39.35264062
A46: Add back increase in current liabilities | C46: =C34-B34 -> -8 | D46: =D34-C34 -> 13.8 | E46: =E34-D34 -> 15.87 | F46: =F34-E34 -> 18.2505 | G46: =G34-F34 -> 20.988075
A47: Subtract increase in fixed assets at cost | C47: =-(C29-B29) -> -210.5263158 | D47: =-(D29-C29) -> -232.6869806 | E47: =-(E29-D29) -> -257.180347 | F47: =-(F29-E29) -> -284.2519625 | G47: =-(G29-F29) -> -314.1732217
A48: Add back after-tax interest on debt | C48: =-C16*(1-$B$9) -> 54 | D48: 42 | E48: 30 | F48: 18 | G48: 6
A49: Subtract after-tax interest on cash and mkt. securities | C49: -0.4594477998 | D49: -1.992421187 | E49: -5.691198543 | F49: -12.76648673 | G49: -23.8090452
A50: Free cash flow | C50: =SUM(C43:C49) -> 272.6842105 | D50: =SUM(D43:D49) -> 284.7378116 | E50: =SUM(E43:E49) -> 333.6942918 | F50: =SUM(F43:F49) -> 390.6516975 | G50: =SUM(G43:G49) -> 456.8793732
A56: RETURN ON EQUITY (ROE)
A57: Year | B57: 0 | C57: 1 | D57: 2 | E57: 3 | F57: 4 | G57: 5
A58: Equity cash flow | B58: =-B36 -> -1100 | C58: =C22 -> 0 | D58: =D22 -> 0 | E58: =E22 -> 0 | F58: =F22 -> 0 | G58: =G22+G36+G37 -> 2774.160987 | H58: <-- =G23+G37+G38
A59: RETURN ON EQUITY (ROE) | B59: =IRR(B58:G58) -> 0.2032276267 | C59: <-- =IRR(B59:G59)
A62: Data table: ROE as a function of initial | C62: =B59 -> 0.2032276267 | D62: <-- =B60&" , table header"
A63: equity investment | B63: 2000 | C63: 0.1458139511
B64: 1800 | C64: 0.1543055805
B65: 1600 | C65: 0.1645805305
B66: 1400 | C66: 0.1772801055
B67: 1200 | C67: 0.193403739
B68: 1000 | C68: 0.2146080378
B69: 800 | C69: 0.2438780449
B70: 600 | C70: 0.2872822454
B71: 400 | C71: 0.3597895187
B72: 200 | C72: 0.5153925955

Sheet Pages 153-154
A1: PROJECT FINANCE With these parameters the project cannot pay off its debt
A2: Sales growth | B2: 0.15
A3: Current assets/Sales | B3: 0.15
A4: Current liabilities/Sales | B4: 0.08
A5: Costs of goods sold/Sales | B5: 0.55
A6: Depreciation rate | B6: 0.1
A7: Interest rate on debt | B7: 0.1
A8: Interest paid on cash and marketable securities | B8: 0.08
A9: Tax rate | B9: 0.4
A10: Dividend payout ratio | B10: 0 | C10: <-- No dividends until all the debt is paid off
A12: Year | B12: 0 | C12: 1 | D12: 2 | E12: 3 | F12: 4 | G12: 5
A13: Income statement
A14: Sales | C14: 1150 | D14: =C14*(1+$B$2) -> 1322.5 | E14: =D14*(1+$B$2) -> 1520.875 | F14: =E14*(1+$B$2) -> 1749.00625 | G14: =F14*(1+$B$2) -> 2011.357187
A15: Costs of goods sold | C15: =-C14*$B$5 -> -632.5 | D15: =-D14*$B$5 -> -727.375 | E15: =-E14*$B$5 -> -836.48125 | F15: =-F14*$B$5 -> -961.9534375 | G15: =-G14*$B$5 -> -1106.246453
A16: Interest payments on debt | C16: =-$B$7*(B35+C35)/2 -> -90 | D16: =-$B$7*(C35+D35)/2 -> -70 | E16: =-$B$7*(D35+E35)/2 -> -50 | F16: =-$B$7*(E35+F35)/2 -> -30 | G16: =-$B$7*(F35+G35)/2 -> -10
A17: Interest earned on cash and marketable securities | C17: =$B$8*(B26+C26)/2 -> -2.062122521 | D17: =$B$8*(C26+D26)/2 -> -5.72616045 | E17: =$B$8*(D26+E26)/2 -> -6.998365096 | F17: =$B$8*(E26+F26)/2 -> -4.057584102 | G17: =$B$8*(F26+G26)/2 -> 3.853895079
A18: Depreciation | C18: =-$B$6*(C29+B29)/2 -> -210.5263158 | D18: =-$B$6*(D29+C29)/2 -> -232.6869806 | E18: =-$B$6*(E29+D29)/2 -> -257.180347 | F18: =-$B$6*(F29+E29)/2 -> -284.2519625 | G18: =-$B$6*(G29+F29)/2 -> -314.1732217
A19: Profit before tax | C19: =SUM(C14:C18) -> 214.9115617 | D19: =SUM(D14:D18) -> 286.7118589 | E19: =SUM(E14:E18) -> 370.2150379 | F19: =SUM(F14:F18) -> 468.7432659 | G19: =SUM(G14:G18) -> 584.7914078
A20: Taxes | C20: =-C19*$B$9 -> -85.96462468 | D20: =-D19*$B$9 -> -114.6847436 | E20: =-E19*$B$9 -> -148.0860152 | F20: =-F19*$B$9 -> -187.4973064 | G20: =-G19*$B$9 -> -233.9165631
A21: Profit after tax | C21: =C20+C19 -> 128.946937 | D21: =D20+D19 -> 172.0271154 | E21: =E20+E19 -> 222.1290227 | F21: =F20+F19 -> 281.2459596 | G21: =G20+G19 -> 350.8748447
A22: Dividends | C22: =-$B$10*C21 -> 0 | D22: =-$B$10*D21 -> 0 | E22: =-$B$10*E21 -> 0 | F22: =-$B$10*F21 -> 0 | G22: =-$B$10*G21 -> 0
A23: Retained earnings | C23: =C22+C21 -> 128.946937 | D23: =D22+D21 -> 172.0271154 | E23: =E22+E21 -> 222.1290227 | F23: =F22+F21 -> 281.2459596 | G23: =G22+G21 -> 350.8748447
A25: Balance sheet
A26: Cash and marketable securities | B26: 0 | C26: =C38-C27-C31 -> -51.55306299 | D26: =D38-D27-D31 -> -91.60094762 | E26: =E38-E27-E31 -> -83.35817487 | F26: =F38-F27-F31 -> -18.08140281 | G26: =G38-G27-G31 -> 114.4288762 | H26: =getformula(G26)&", the plug" -> <-- =G38-G27-G31, the plug
A27: Current assets | B27: 200 | C27: =C14*$B$3 -> 172.5 | D27: =D14*$B$3 -> 198.375 | E27: =E14*$B$3 -> 228.13125 | F27: =F14*$B$3 -> 262.3509375 | G27: =G14*$B$3 -> 301.7035781
A28: Fixed assets
A29: At cost | B29: 2000 | C29: =C31-C30 -> 2210.526316 | D29: =D31-D30 -> 2443.213296 | E29: =E31-E30 -> 2700.393643 | F29: =F31-F30 -> 2984.645606 | G29: =G31-G30 -> 3298.818828
A30: Depreciation | B30: 0 | C30: =B30-$B$6*(C29+B29)/2 -> -210.5263158 | D30: =C30-$B$6*(D29+C29)/2 -> -443.2132964 | E30: =D30-$B$6*(E29+D29)/2 -> -700.3936434 | F30: =E30-$B$6*(F29+E29)/2 -> -984.6456059 | G30: =F30-$B$6*(G29+F29)/2 -> -1298.818828
A31: Net fixed assets | B31: =B29-B30 -> 2000 | C31: =B31 -> 2000 | D31: =C31 -> 2000 | E31: =D31 -> 2000 | F31: =E31 -> 2000 | G31: =F31 -> 2000 | H31: <-- NFA don't change
A32: Total assets | B32: =B26+B27+B31 -> 2200 | C32: =C31+C27+C26 -> 2120.946937 | D32: =D31+D27+D26 -> 2106.774052 | E32: =E31+E27+E26 -> 2144.773075 | F32: =F31+F27+F26 -> 2244.269535 | G32: =G31+G27+G26 -> 2416.132454
A34: Current liabilities | B34: 100 | C34: =C14*$B$4 -> 92 | D34: =D14*$B$4 -> 105.8 | E34: =E14*$B$4 -> 121.67 | F34: =F14*$B$4 -> 139.9205 | G34: =G14*$B$4 -> 160.908575
A35: Debt | B35: =B32-B34-B36-B37 -> 1000 | C35: =B35-$B$35/5 -> 800 | D35: =C35-$B$35/5 -> 600 | E35: =D35-$B$35/5 -> 400 | F35: =E35-$B$35/5 -> 200 | G35: =F35-$B$35/5 -> 0
A36: Stock | B36: 1100 | C36: =B36 -> 1100 | D36: =C36 -> 1100 | E36: =D36 -> 1100 | F36: =E36 -> 1100 | G36: =F36 -> 1100
A37: Accumulated retained earnings | B37: 0 | C37: =B37+C23 -> 128.946937 | D37: =C37+D23 -> 300.9740524 | E37: =D37+E23 -> 523.1030751 | F37: =E37+F23 -> 804.3490347 | G37: =F37+G23 -> 1155.223879
A38: Total liabilities and equity | B38: =SUM(B34:B37) -> 2200 | C38: 2120.946937 | D38: 2106.774052 | E38: 2144.773075 | F38: 2244.269535 | G38: 2416.132454
A41: FREE CASH FLOW CALCULATION
A42: Year | B42: 0 | C42: 1 | D42: 2 | E42: 3 | F42: 4 | G42: 5
A43: Profit after tax | C43: =C21 -> 128.946937 | D43: =D21 -> 172.0271154 | E43: =E21 -> 222.1290227 | F43: =F21 -> 281.2459596 | G43: =G21 -> 350.8748447
A44: Add back depreciation | C44: =-C18 -> 210.5263158 | D44: =-D18 -> 232.6869806 | E44: =-E18 -> 257.180347 | F44: =-F18 -> 284.2519625 | G44: =-G18 -> 314.1732217
A45: Subtract increase in current assets | C45: =-(C27-B27) -> 27.5 | D45: =-(D27-C27) -> -25.875 | E45: =-(E27-D27) -> -29.75625 | F45: =-(F27-E27) -> -34.2196875 | G45: =-(G27-F27) -> -39.35264062
A46: Add back increase in current liabilities | C46: =C34-B34 -> -8 | D46: =D34-C34 -> 13.8 | E46: =E34-D34 -> 15.87 | F46: =F34-E34 -> 18.2505 | G46: =G34-F34 -> 20.988075
A47: Subtract increase in fixed assets at cost | C47: =-(C29-B29) -> -210.5263158 | D47: =-(D29-C29) -> -232.6869806 | E47: =-(E29-D29) -> -257.180347 | F47: =-(F29-E29) -> -284.2519625 | G47: =-(G29-F29) -> -314.1732217
A48: Add back after-tax interest on debt | C48: =-C16 -> 90 | D48: 70 | E48: 50 | F48: 30 | G48: 10
A49: Subtract after-tax interest on cash and mkt. securities | C49: 2.062122521 | D49: 5.72616045 | E49: 6.998365096 | F49: 4.057584102 | G49: -3.853895079
A50: Free cash flow | C50: =SUM(C43:C49) -> 240.5090595 | D50: =SUM(D43:D49) -> 235.6782758 | E50: =SUM(E43:E49) -> 265.2411378 | F50: =SUM(F43:F49) -> 299.3343562 | G50: =SUM(G43:G49) -> 338.656384
A56: RETURN ON EQUITY (ROE)
A57: Year | B57: 0 | C57: 1 | D57: 2 | E57: 3 | F57: 4 | G57: 5
A58: Equity cash flow | B58: =-B36 -> -1100 | C58: =C22 -> 0 | D58: =D22 -> 0 | E58: =E22 -> 0 | F58: =F22 -> 0 | G58: =G22+G36+G37 -> 2255.223879 | H58: =getformula(G58) -> <-- =G22+G36+G37
A59: RETURN ON EQUITY (ROE) | B59: =IRR(B58:G58) -> 0.1544081794 | C59: =getformula(B59) -> <-- =IRR(B58:G58)
A62: Data table: ROE as a function of initial | C62: =B59 -> 0.1544081794 | D62: <-- =B60
A63: equity investment | B63: 2000 | C63: 0.113988035
B64: 1800 | C64: 0.1198286814
B65: 1600 | C65: 0.1269622608
B66: 1400 | C66: 0.1358764835
B67: 1200 | C67: 0.147343157
B68: 1000 | C68: 0.162664137
B69: 800 | C69: 0.1842326449
B70: 600 | C70: 0.217027043
B71: 400 | C71: 0.2736544421
B72: 200 | C72: 0.4009632967

Sheet Page 154
A1: PROJECT FINANCE With these parameters the project cannot pay off its debt
A2: Sales growth | B2: 0.15
A3: Current assets/Sales | B3: 0.15
A4: Current liabilities/Sales | B4: 0.08
A5: Costs of goods sold/Sales | B5: 0.55
A6: Depreciation rate | B6: 0.1
A7: Interest rate on debt | B7: 0.1
A8: Interest paid on cash and marketable securities | B8: 0.08
A9: Tax rate | B9: 0.4
A10: Dividend payout ratio | B10: 0 | C10: <-- No dividends until all the debt is paid off
A12: Year | B12: 0 | C12: 1 | D12: 2 | E12: 3 | F12: 4 | G12: 5
A13: Income statement
A14: Sales | C14: 1150 | D14: =C14*(1+$B$2) -> 1322.5 | E14: =D14*(1+$B$2) -> 1520.875 | F14: =E14*(1+$B$2) -> 1749.00625 | G14: =F14*(1+$B$2) -> 2011.357187
A15: Costs of goods sold | C15: =-C14*$B$5 -> -632.5 | D15: =-D14*$B$5 -> -727.375 | E15: =-E14*$B$5 -> -836.48125 | F15: =-F14*$B$5 -> -961.9534375 | G15: =-G14*$B$5 -> -1106.246453
A16: Interest payments on debt | C16: =-$B$7*(B35+C35)/2 -> -135 | D16: =-$B$7*(C35+D35)/2 -> -105 | E16: =-$B$7*(D35+E35)/2 -> -75 | F16: =-$B$7*(E35+F35)/2 -> -45 | G16: =-$B$7*(F35+G35)/2 -> -15
A17: Interest earned on cash and marketable securities | C17: =$B$8*(B26+C26)/2 -> -7.267040552 | D17: =$B$8*(C26+D26)/2 -> -21.35099246 | E17: =$B$8*(D26+E26)/2 -> -33.06376244 | F17: =$B$8*(E26+F26)/2 -> -40.58521328 | G17: =$B$8*(F26+G26)/2 -> -43.15869654
A18: Depreciation | C18: =-$B$6*(C29+B29)/2 -> -210.5263158 | D18: =-$B$6*(D29+C29)/2 -> -232.6869806 | E18: =-$B$6*(E29+D29)/2 -> -257.180347 | F18: =-$B$6*(F29+E29)/2 -> -284.2519625 | G18: =-$B$6*(G29+F29)/2 -> -314.1732217
A19: Profit before tax | C19: =SUM(C14:C18) -> 164.7066437 | D19: =SUM(D14:D18) -> 236.0870269 | E19: =SUM(E14:E18) -> 319.1496406 | F19: =SUM(F14:F18) -> 417.2156368 | G19: =SUM(G14:G18) -> 532.7788162
A20: Taxes | C20: =-C19*$B$9 -> -65.88265746 | D20: =-D19*$B$9 -> -94.43481077 | E20: =-E19*$B$9 -> -127.6598562 | F20: =-F19*$B$9 -> -166.8862547 | G20: =-G19*$B$9 -> -213.1115265
A21: Profit after tax | C21: =C20+C19 -> 98.82398619 | D21: =D20+D19 -> 141.6522162 | E21: =E20+E19 -> 191.4897843 | F21: =F20+F19 -> 250.3293821 | G21: =G20+G19 -> 319.6672897
A22: Dividends | C22: =-$B$10*C21 -> 0 | D22: =-$B$10*D21 -> 0 | E22: =-$B$10*E21 -> 0 | F22: =-$B$10*F21 -> 0 | G22: =-$B$10*G21 -> 0
A23: Retained earnings | C23: =C22+C21 -> 98.82398619 | D23: =D22+D21 -> 141.6522162 | E23: =E22+E21 -> 191.4897843 | F23: =F22+F21 -> 250.3293821 | G23: =G22+G21 -> 319.6672897
A25: Balance sheet
A26: Cash and marketable securities | B26: 0 | C26: =C38-C27-C31 -> -181.6760138 | D26: =D38-D27-D31 -> -352.0987976 | E26: =E38-E27-E31 -> -474.4952633 | F26: =F38-F27-F31 -> -540.1350687 | G26: =G38-G27-G31 -> -538.8323447 | H26: =getformula(G26)&", the plug" -> <-- =G38-G27-G31, the plug
A27: Current assets | B27: 200 | C27: =C14*$B$3 -> 172.5 | D27: =D14*$B$3 -> 198.375 | E27: =E14*$B$3 -> 228.13125 | F27: =F14*$B$3 -> 262.3509375 | G27: =G14*$B$3 -> 301.7035781
A28: Fixed assets
A29: At cost | B29: 2000 | C29: =C31-C30 -> 2210.526316 | D29: =D31-D30 -> 2443.213296 | E29: =E31-E30 -> 2700.393643 | F29: =F31-F30 -> 2984.645606 | G29: =G31-G30 -> 3298.818828
A30: Depreciation | B30: 0 | C30: =B30-$B$6*(C29+B29)/2 -> -210.5263158 | D30: =C30-$B$6*(D29+C29)/2 -> -443.2132964 | E30: =D30-$B$6*(E29+D29)/2 -> -700.3936434 | F30: =E30-$B$6*(F29+E29)/2 -> -984.6456059 | G30: =F30-$B$6*(G29+F29)/2 -> -1298.818828
A31: Net fixed assets | B31: =B29-B30 -> 2000 | C31: =B31 -> 2000 | D31: =C31 -> 2000 | E31: =D31 -> 2000 | F31: =E31 -> 2000 | G31: =F31 -> 2000 | H31: <-- NFA don't change
A32: Total assets | B32: =B26+B27+B31 -> 2200 | C32: =C31+C27+C26 -> 1990.823986 | D32: =D31+D27+D26 -> 1846.276202 | E32: =E31+E27+E26 -> 1753.635987 | F32: =F31+F27+F26 -> 1722.215869 | G32: =G31+G27+G26 -> 1762.871233
A34: Current liabilities | B34: 100 | C34: =C14*$B$4 -> 92 | D34: =D14*$B$4 -> 105.8 | E34: =E14*$B$4 -> 121.67 | F34: =F14*$B$4 -> 139.9205 | G34: =G14*$B$4 -> 160.908575
A35: Debt | B35: 1500 | C35: =B35-$B$35/5 -> 1200 | D35: =C35-$B$35/5 -> 900 | E35: =D35-$B$35/5 -> 600 | F35: =E35-$B$35/5 -> 300 | G35: =F35-$B$35/5 -> 0 | H35: =getformula(G35) -> <-- =F35-$B$35/5
A36: Stock | B36: =B32-B34-B35-B37 -> 600 | C36: =B36 -> 600 | D36: =C36 -> 600 | E36: =D36 -> 600 | F36: =E36 -> 600 | G36: =F36 -> 600
A37: Accumulated retained earnings | B37: 0 | C37: =B37+C23 -> 98.82398619 | D37: =C37+D23 -> 240.4762024 | E37: =D37+E23 -> 431.9659867 | F37: =E37+F23 -> 682.2953688 | G37: =F37+G23 -> 1001.962658
A38: Total liabilities and equity | B38: =SUM(B34:B37) -> 2200 | C38: 1990.823986 | D38: 1846.276202 | E38: 1753.635987 | F38: 1722.215869 | G38: 1762.871233
A41: FREE CASH FLOW CALCULATION
A42: Year | B42: 0 | C42: 1 | D42: 2 | E42: 3 | F42: 4 | G42: 5
A43: Profit after tax | C43: =C21 -> 98.82398619 | D43: =D21 -> 141.6522162 | E43: =E21 -> 191.4897843 | F43: =F21 -> 250.3293821 | G43: =G21 -> 319.6672897
A44: Add back depreciation | C44: =-C18 -> 210.5263158 | D44: =-D18 -> 232.6869806 | E44: =-E18 -> 257.180347 | F44: =-F18 -> 284.2519625 | G44: =-G18 -> 314.1732217
A45: Subtract increase in current assets | C45: =-(C27-B27) -> 27.5 | D45: =-(D27-C27) -> -25.875 | E45: =-(E27-D27) -> -29.75625 | F45: =-(F27-E27) -> -34.2196875 | G45: =-(G27-F27) -> -39.35264062
A46: Add back increase in current liabilities | C46: =C34-B34 -> -8 | D46: =D34-C34 -> 13.8 | E46: =E34-D34 -> 15.87 | F46: =F34-E34 -> 18.2505 | G46: =G34-F34 -> 20.988075
A47: Subtract increase in fixed assets at cost | C47: =-(C29-B29) -> -210.5263158 | D47: =-(D29-C29) -> -232.6869806 | E47: =-(E29-D29) -> -257.180347 | F47: =-(F29-E29) -> -284.2519625 | G47: =-(G29-F29) -> -314.1732217
A48: Add back after-tax interest on debt | C48: =-C16 -> 135 | D48: 105 | E48: 75 | F48: 45 | G48: 15
A49: Subtract after-tax interest on cash and mkt. securities | C49: 7.267040552 | D49: 21.35099246 | E49: 33.06376244 | F49: 40.58521328 | G49: 43.15869654
A50: Free cash flow | C50: =SUM(C43:C49) -> 260.5910267 | D50: =SUM(D43:D49) -> 255.9282086 | E50: =SUM(E43:E49) -> 285.6672968 | F50: =SUM(F43:F49) -> 319.9454078 | G50: =SUM(G43:G49) -> 359.4614206
A56: RETURN ON EQUITY (ROE)
A57: Year | B57: 0 | C57: 1 | D57: 2 | E57: 3 | F57: 4 | G57: 5
A58: Equity cash flow | B58: =-B36 -> -600 | C58: =C22 -> 0 | D58: =D22 -> 0 | E58: =E22 -> 0 | F58: =F22 -> 0 | G58: =G22+G36+G37 -> 1601.962658 | H58: =getformula(G58) -> <-- =G22+G36+G37
A59: RETURN ON EQUITY (ROE) | B59: =IRR(B58:G58) -> 0.2170270403 | C59: =getformula(B59) -> <-- =IRR(B58:G58)
A62: Data table: ROE as a function of initial | C62: =B59 -> 0.2170270403 | D62: =getformula(C62)&" , data table header" -> <-- =B59 , data table header
A63: equity investment | B63: 2000 | C63: 0.1080142379
B64: 1800 | C64: 0.1142614754
B65: 1600 | C65: 0.1218785898
B66: 1400 | C66: 0.1313777067
B67: 1200 | C67: 0.1435668059
B68: 1000 | C68: 0.1598039359
B69: 800 | C69: 0.1825752549
B70: 600 | C70: 0.2170270406
B71: 400 | C71: 0.2761153843
B72: 200 | C72: 0.4076497196

Sheet Page 155
A1: COMPUTING THE ROE IN THE FIRST FINANCIAL MODEL
A2: Sales growth | B2: 0.1
A3: Current assets/Sales | B3: 0.15
A4: Current liabilities/Sales | B4: 0.08
A5: Net fixed assets/Sales | B5: 0.77
A6: Costs of goods sold/Sales | B6: 0.5
A7: Depreciation rate | B7: 0.1
A8: Interest rate on debt | B8: 0.1
A9: Interest paid on cash and marketable securities | B9: 0.08
A10: Tax rate | B10: 0.4
A11: Dividend payout ratio | B11: 0.4
A13: Year | B13: 0 | C13: 1 | D13: 2 | E13: 3 | F13: 4 | G13: 5
A14: Income statement
A15: Sales | B15: =1000 -> 1000 | C15: =B15*(1+$B$2) -> 1100 | D15: =C15*(1+$B$2) -> 1210 | E15: =D15*(1+$B$2) -> 1331 | F15: =E15*(1+$B$2) -> 1464.1 | G15: =F15*(1+$B$2) -> 1610.51
A16: Costs of goods sold | B16: =-B15*$B$6 -> -500 | C16: -550 | D16: -605 | E16: -665.5 | F16: -732.05 | G16: -805.255
A17: Interest payments on debt | B17: =-$B$8*B36 -> -32 | C17: =-$B$8*(B36+C36)/2 -> -32 | D17: =-$B$8*(C36+D36)/2 -> -32 | E17: =-$B$8*(D36+E36)/2 -> -32 | F17: =-$B$8*(E36+F36)/2 -> -32 | G17: =-$B$8*(F36+G36)/2 -> -32
A18: Interest earned on cash and marketable securities | B18: =$B$9*B27 -> 6.4 | C18: =$B$9*(B27+C27)/2 -> 8.947795625 | D18: =$B$9*(C27+D27)/2 -> 14.27670286 | E18: =$B$9*(D27+E27)/2 -> 20.08091336 | F18: =$B$9*(E27+F27)/2 -> 26.37673126 | G18: =$B$9*(F27+G27)/2 -> 33.17806883
A19: Depreciation | B19: -100 | C19: =-$B$7*(C30+B30)/2 -> -116.6842105 | D19: =-$B$7*(D30+C30)/2 -> -137.4772853 | E19: =-$B$7*(E30+D30)/2 -> -161.3101575 | F19: =-$B$7*(F30+E30)/2 -> -188.5879109 | G19: =-$B$7*(G30+F30)/2 -> -219.7667804
A20: Profit before tax | B20: =SUM(B15:B19) -> 374.4 | C20: 410.2635851 | D20: 449.7994175 | E20: 492.2707559 | F20: 537.8388204 | G20: 586.6662884
A21: Taxes | B21: =-B20*$B$10 -> -149.76 | C21: -164.105434 | D21: -179.919767 | E21: -196.9083024 | F21: -215.1355282 | G21: -234.6665154
A22: Profit after tax | B22: =B21+B20 -> 224.64 | C22: 246.1581511 | D22: 269.8796505 | E22: 295.3624535 | F22: 322.7032922 | G22: 351.999773
A23: Dividends | B23: =-B22*$B$11 -> -89.856 | C23: =-$B$11*C22 -> -98.46326042 | D23: =-$B$11*D22 -> -107.9518602 | E23: =-$B$11*E22 -> -118.1449814 | F23: =-$B$11*F22 -> -129.0813169 | G23: =-$B$11*G22 -> -140.7999092
A24: Retained earnings | B24: =B23+B22 -> 134.784 | C24: 147.6948906 | D24: 161.9277903 | E24: 177.2174721 | F24: 193.6219753 | G24: 211.1998638
A26: Balance sheet
A27: Cash and marketable securities | B27: 80 | C27: =C39-C28-C32 -> 143.6948906 | D27: =D39-D28-D32 -> 213.222681 | E27: =E39-E28-E32 -> 288.8001531 | F27: =F39-F28-F32 -> 370.6181284 | G27: =G39-G28-G32 -> 458.8335922
A28: Current assets | B28: =$B$3*B15 -> 150 | C28: =C15*$B$3 -> 165 | D28: =D15*$B$3 -> 181.5 | E28: =E15*$B$3 -> 199.65 | F28: =F15*$B$3 -> 219.615 | G28: =G15*$B$3 -> 241.5765
A29: Fixed assets
A30: At cost | B30: =B32-B31 -> 1070 | C30: 1263.684211 | D30: 1485.861496 | E30: 1740.341653 | F30: 2031.416564 | G30: 2363.919045
A31: Depreciation | B31: -300 | C31: =B31-$B$7*(C30+B30)/2 -> -416.6842105 | D31: =C31-$B$7*(D30+C30)/2 -> -554.1614958 | E31: =D31-$B$7*(E30+D30)/2 -> -715.4716533 | F31: =E31-$B$7*(F30+E30)/2 -> -904.0595642 | G31: =F31-$B$7*(G30+F30)/2 -> -1123.826345
A32: Net fixed assets | B32: =B15*$B$5 -> 770 | C32: 847 | D32: 931.7 | E32: 1024.87 | F32: 1127.357 | G32: 1240.0927
A33: Total assets | B33: =B27+B28+B32 -> 1000 | C33: =C32+C28+C27 -> 1155.694891 | D33: =D32+D28+D27 -> 1326.422681 | E33: =E32+E28+E27 -> 1513.320153 | F33: =F32+F28+F27 -> 1717.590128 | G33: =G32+G28+G27 -> 1940.502792
A35: Current liabilities | B35: =B15*$B$4 -> 80 | C35: 88 | D35: 96.8 | E35: 106.48 | F35: 117.128 | G35: 128.8408
A36: Debt | B36: =B33-B35-B37-B38 -> 320 | C36: =B36 -> 320 | D36: 320 | E36: 320 | F36: 320 | G36: 320
A37: Stock | B37: 450 | C37: 450 | D37: 450 | E37: 450 | F37: 450 | G37: 450
A38: Accumulated retained earnings | B38: 150 | C38: =B38+C24 -> 297.6948906 | D38: =C38+D24 -> 459.622681 | E38: =D38+E24 -> 636.8401531 | F38: =E38+F24 -> 830.4621284 | G38: =F38+G24 -> 1041.661992
A39: Total liabilities and equity | B39: =SUM(B35:B38) -> 1000 | C39: 1155.694891 | D39: 1326.422681 | E39: 1513.320153 | F39: 1717.590128 | G39: 1940.502792
A41: Year | B41: 0 | C41: 1 | D41: 2 | E41: 3 | F41: 4 | G41: 5
A42: Free cash flow calculation
A43: Profit after tax | C43: =C22 -> 246.1581511 | D43: =D22 -> 269.8796505 | E43: =E22 -> 295.3624535 | F43: =F22 -> 322.7032922 | G43: =G22 -> 351.999773
A44: Add back depreciation | C44: =-C19 -> 116.6842105 | D44: =-D19 -> 137.4772853 | E44: =-E19 -> 161.3101575 | F44: =-F19 -> 188.5879109 | G44: =-G19 -> 219.7667804
A45: Subtract increase in current assets | C45: =-(C28-B28) -> -15 | D45: =-(D28-C28) -> -16.5 | E45: =-(E28-D28) -> -18.15 | F45: =-(F28-E28) -> -19.965 | G45: =-(G28-F28) -> -21.9615
A46: Add back increase in current liabilities | C46: =C35-B35 -> 8 | D46: =D35-C35 -> 8.8 | E46: =E35-D35 -> 9.68 | F46: =F35-E35 -> 10.648 | G46: =G35-F35 -> 11.7128
A47: Subtract increase in fixed assets at cost | C47: =-(C30-B30) -> -193.6842105 | D47: =-(D30-C30) -> -222.1772853 | E47: =-(E30-D30) -> -254.4801575 | F47: =-(F30-E30) -> -291.0749109 | G47: =-(G30-F30) -> -332.5024804
A48: Add back after-tax interest on debt | C48: =-(1-$B$10)*C17 -> 19.2 | D48: 19.2 | E48: 19.2 | F48: 19.2 | G48: 19.2
A49: Subtract after-tax interest on cash and mkt. securities | C49: -5.368677375 | D49: -8.566021718 | E49: -12.04854802 | F49: -15.82603876 | G49: -19.9068413
A50: Free cash flow | C50: =SUM(C43:C49) -> 175.9894737 | D50: =SUM(D43:D49) -> 188.1136288 | E50: =SUM(E43:E49) -> 200.8739055 | F50: =SUM(F43:F49) -> 214.2732535 | G50: =SUM(G43:G49) -> 228.3085317
A53: Valuing the firm (mid-year discounting)
A54: Weighted average cost of capital | B54: 0.2
A55: Long-term free cash flow growth rate | B55: 0.05
A57: Year | B57: 0 | C57: 1 | D57: 2 | E57: 3 | F57: 4 | G57: 5
A58: FCF | C58: =C50 -> 175.9894737 | D58: =D50 -> 188.1136288 | E58: =E50 -> 200.8739055 | F58: =F50 -> 214.2732535 | G58: =G50 -> 228.3085317
A59: Terminal value | G59: =G58*(1+B55)/(B54-B55) -> 1598.159722 | H59: =getformula(G59) -> <-- =G58*(1+B55)/(B54-B55)
A60: Total | C60: =C59+C58 -> 175.9894737 | D60: =D59+D58 -> 188.1136288 | E60: =E59+E58 -> 200.8739055 | F60: =F59+F58 -> 214.2732535 | G60: =G59+G58 -> 1826.468254
A62: ="Enterprise value, NPV of row "&ROW(A60) -> Enterprise value, NPV of row 60 | B62: =NPV(B54,C60:G60)*(1+B54)^0.5 -> 1348.371777 | C62: =getformula(B62) -> <-- =NPV(B54,C60:G60)*(1+B54)^0.5
A63: Add in initial (year 0) cash and mkt. securities | B63: =B27 -> 80 | C63: =getformula(B63) -> <-- =B27
A64: Asset value, year 0 | B64: =B63+B62 -> 1428.371777 | C64: =getformula(B64) -> <-- =B63+B62
A65: Subtract out value of firm's debt today | B65: =-B36 -> -320 | C65: =getformula(B65) -> <-- =-B36
A66: Equity value | B66: =B64+B65 -> 1108.371777 | C66: =getformula(B66) -> <-- =B64+B65
A69: RETURN ON EQUITY (ROE)
A70: Year | B70: 0 | C70: 1 | D70: 2 | E70: 3 | F70: 4 | G70: 5
A71: Projected dividends | B71: =-B66 -> -1108.371777 | C71: =-C23 -> 98.46326042 | D71: =-D23 -> 107.9518602 | E71: =-E23 -> 118.1449814 | F71: =-F23 -> 129.0813169 | G71: =-G23 -> 140.7999092
A72: Anticipated equity value, year 5 | G72: =G59+G27-G36 -> 1736.993314 | H72: <-- Terminal value + year 5 cash - year 5 debt
A73: Equity cash flow | B73: =SUM(B71:B72) -> -1108.371777 | C73: 98.46326042 | D73: 107.9518602 | E73: 118.1449814 | F73: 129.0813169 | G73: 1877.793224 | H73: =getformula(G73) -> <-- =SUM(G71:G72)
A74: RETURN ON EQUITY (ROE) | B74: =IRR(B73:G73) -> 0.1829279393 | C74: =getformula(B74) -> <-- =IRR(B73:G73)

Sheet Page 156
A1: MODELING TAX LOSS CARRYFORWARDS
A2: Sales growth | B2: 0.11
A3: Current assets/Sales | B3: 0.15
A4: Current liabilities/Sales | B4: 0.08
A5: Net fixed assets/Sales | B5: 0.45
A6: Fixed costs | B6: 440
A7: Costs of goods sold/Sales | B7: 0.55
A8: Depreciation rate | B8: 0.1
A9: Interest rate on debt | B9: 0.1
A10: Interest paid on cash and marketable securities | B10: 0.08
A11: Initial tax-loss carryforward | B11: -100
A12: Tax rate | B12: 0.4
A13: Dividend payout ratio | B13: 0.4
A15: Year | B15: 0 | C15: 1 | D15: 2 | E15: 3 | F15: 4 | G15: 5
A16: Income statement
A17: Sales | B17: 1000 | C17: =B17*(1+$B$2) -> 1110 | D17: =C17*(1+$B$2) -> 1232.1 | E17: =D17*(1+$B$2) -> 1367.631 | F17: =E17*(1+$B$2) -> 1518.07041 | G17: =F17*(1+$B$2) -> 1685.058155
A18: Fixed costs | C18: =-$B$6 -> -440 | D18: -440 | E18: -440 | F18: -440 | G18: -440 | H18: =getformula(G18) -> <-- =-$B$6
A19: Costs of goods sold | C19: =-C17*$B$7 -> -610.5 | D19: -677.655 | E19: -752.19705 | F19: -834.9387255 | G19: -926.7819853
A20: Interest payments on debt | C20: =-$B$9*(B43+C43)/2 -> 3 | D20: =-$B$9*(C43+D43)/2 -> 9 | E20: =-$B$9*(D43+E43)/2 -> 15 | F20: =-$B$9*(E43+F43)/2 -> 21 | G20: =-$B$9*(F43+G43)/2 -> 27
A21: Interest earned on cash and marketable securities | C21: =$B$10*AVERAGE(B34:C34) -> 0.9894736842 | D21: =$B$10*AVERAGE(C34:D34) -> -8.266238556 | E21: -13.69398654 | F21: -16.09914512 | G21: -16.85326421 | H21: =getformula(G21) -> <-- =$B$10*AVERAGE(F34:G34)
A22: Depreciation | C22: =-$B$8*(C37+B37)/2 -> -81.55263158 | D22: =-$B$8*(D37+C37)/2 -> -95.63422438 | E22: =-$B$8*(E37+D37)/2 -> -111.8027717 | F22: =-$B$8*(F37+E37)/2 -> -130.3444679 | G22: =-$B$8*(G37+F37)/2 -> -151.5829498
A23: Profit before tax | C23: =SUM(C17:C22) -> -18.06315789 | D23: 19.54453707 | E23: 64.93719178 | F23: 117.6880715 | G23: 176.8399558
A24: Taxes | C24: =-MAX($B$12*C30,0) -> 0 | D24: =-MAX($B$12*D30,0) -> 0 | E24: 0 | F24: -33.64265698 | G24: -70.73598233 | H24: =getformula(G24) -> <-- =-MAX($B$12*G30,0)
A25: Profit after tax | C25: =C24+C23 -> -18.06315789 | D25: 19.54453707 | E25: =E24+E23 -> 64.93719178 | F25: 84.04541452 | G25: 106.1039735
A26: Dividends | C26: =IF(C25<0,0,$B$13*C25) -> 0 | D26: 7.817814827 | E26: =IF(E25<0,0,$B$13*E25) -> 25.97487671 | F26: =IF(F25<0,0,$B$13*F25) -> 33.61816581 | G26: =IF(G25<0,0,$B$13*G25) -> 42.4415894 | H26: =getformula(G26) -> <-- =IF(G25<0,0,$B$13*G25)
A27: Retained earnings | C27: =C26+C25 -> -18.06315789 | D27: 27.36235189 | E27: =E26+E25 -> 90.91206849 | F27: 117.6635803 | G27: 148.5455629
A29: Tax loss carryforward from previous years | C29: =B11 -> -100 | D29: =MIN(C29+C23,0) -> -118.0631579 | E29: =MIN(D29+D23,0) -> -98.51862083 | F29: =MIN(E29+E23,0) -> -33.58142905 | G29: 0 | H29: =getformula(G29) -> <-- =MIN(F29+F23,0)
A30: Taxable profit | B30: =MAX(B25+B29,0) -> 0 | C30: =MAX(C23+C29,0) -> 0 | D30: =MAX(D23+D29,0) -> 0 | E30: 0 | F30: 84.10664245 | G30: 176.8399558 | H30: =getformula(G30) -> <-- =MAX(G23+G29,0)
A31: Effective tax rate | C31: =-C24/C23 -> 0 | D31: =-D24/D23 -> 0 | E31: 0 | F31: 0.2858629303 | G31: 0.4 | H31: =getformula(G31) -> <-- =-G24/G23
A33: Balance sheet
A34: Cash and marketable securities | B34: 80 | C34: =C46-C35-C39 -> -55.26315789 | D34: =D46-D35-D39 -> -151.392806 | E34: -190.9568575 | F34: -211.5217704 | G34: -209.8098349 | H34: <-- Plug
A35: Current assets | B35: =$B$3*B17 -> 150 | C35: =C17*$B$3 -> 166.5 | D35: =D17*$B$3 -> 184.815 | E35: =E17*$B$3 -> 205.14465 | F35: =F17*$B$3 -> 227.7105615 | G35: =G17*$B$3 -> 252.7587233
A36: Fixed assets
A37: At cost | B37: =B39-B38 -> 750 | C37: 881.0526316 | D37: 1031.631856 | E37: 1204.423578 | F37: 1402.46578 | G37: 1629.193215
A38: Depreciation | B38: -300 | C38: =B38+C22 -> -381.5526316 | D38: =C38+D22 -> -477.186856 | E38: =D38+E22 -> -588.9896276 | F38: =E38+F22 -> -719.3340955 | G38: =F38+G22 -> -870.9170453
A39: Net fixed assets | B39: =B17*$B$5 -> 450 | C39: 499.5 | D39: 554.445 | E39: 615.43395 | F39: 683.1316845 | G39: 758.2761698
A40: Total assets | B40: =B34+B35+B39 -> 680 | C40: =C39+C35+C34 -> 610.7368421 | D40: =D39+D35+D34 -> 587.867194 | E40: =E39+E35+E34 -> 629.6217425 | F40: =F39+F35+F34 -> 699.3204756 | G40: =G39+G35+G34 -> 801.2250581
A42: Current liabilities | B42: =B17*$B$4 -> 80 | C42: 88.8 | D42: 98.568 | E42: 109.41048 | F42: 121.4456328 | G42: 134.8046524
A43: Debt | B43: =B40-B42-B44-B45 -> 0 | C43: =B43-60 -> -60 | D43: =C43-60 -> -120 | E43: -180 | F43: -240 | G43: -300 | H43: <-- Decreases by 60 per year
A44: Stock | B44: 450 | C44: =B44 -> 450 | D44: 450 | E44: 450 | F44: 450 | G44: 450
A45: Accumulated retained earnings | B45: 150 | C45: =B45+C27 -> 131.9368421 | D45: =C45+D27 -> 159.299194 | E45: =D45+E27 -> 250.2112625 | F45: 367.8748428 | G45: 516.4204057 | H45: =getformula(G45) -> <-- =F45+G27
A46: Total liabilities and equity | B46: =SUM(B42:B45) -> 680 | C46: 610.7368421 | D46: 587.867194 | E46: 629.6217425 | F46: 699.3204756 | G46: 801.2250581
A48: Year | B48: 0 | C48: 1 | D48: 2 | E48: 3 | F48: 4 | G48: 5
A49: Free cash flow calculation
A50: Profit after tax | C50: =C25 -> -18.06315789 | D50: =D25 -> 19.54453707 | E50: =E25 -> 64.93719178 | F50: =F25 -> 84.04541452 | G50: =G25 -> 106.1039735
A51: Add back depreciation | C51: =-C22 -> 81.55263158 | D51: =-D22 -> 95.63422438 | E51: =-E22 -> 111.8027717 | F51: =-F22 -> 130.3444679 | G51: =-G22 -> 151.5829498
A52: Subtract increase in current assets | C52: =-(C35-B35) -> -16.5 | D52: =-(D35-C35) -> -18.315 | E52: =-(E35-D35) -> -20.32965 | F52: =-(F35-E35) -> -22.5659115 | G52: =-(G35-F35) -> -25.04816177
A53: Add back increase in current liabilities | C53: =C42-B42 -> 8.8 | D53: =D42-C42 -> 9.768 | E53: =E42-D42 -> 10.84248 | F53: =F42-E42 -> 12.0351528 | G53: =G42-F42 -> 13.35901961
A54: Subtract increase in fixed assets at cost | C54: =-(C37-B37) -> -131.0526316 | D54: =-(D37-C37) -> -150.5792244 | E54: =-(E37-D37) -> -172.7917217 | F54: =-(F37-E37) -> -198.0422024 | G54: =-(G37-F37) -> -226.727435
A55: Add back after-tax interest on debt | C55: =-(1-$C$31)*C20 -> -3 | D55: =-(1-$C$31)*D20 -> -9 | E55: -15 | F55: -21 | G55: -27 | H55: =getformula(G55) -> <-- =-(1-$C$31)*G20
A56: Subtract after-tax interest on cash and mkt. securities | C56: =-(1-$C$31)*C21 -> -0.9894736842 | D56: =-(1-$C$31)*D21 -> 8.266238556 | E56: 13.69398654 | F56: 16.09914512 | G56: 16.85326421 | H56: =getformula(G56) -> <-- =-(1-$C$31)*G21
A57: Free cash flow | C57: =SUM(C50:C56) -> -79.25263158 | D57: =SUM(D50:D56) -> -44.68122438 | E57: =SUM(E50:E56) -> -6.84494168 | F57: =SUM(F50:F56) -> 0.9160664355 | G57: =SUM(G50:G56) -> 9.123610258
